Body Name,Document Number,Service,Type of Expenditure,Invoice Date,Supplier Name,Cost to the Council (Amount Exc VAT),Month
EREWASH BOROUGH COUNCIL,219769,Balance Sheet,COVID19 Discretionary Business Grants,15/07/20,1ST CHOICE DENTAL LABORATORY LTD,"10,000.00",Jul-20
EREWASH BOROUGH COUNCIL,219460,Balance Sheet,COVID19 Discretionary Business Grants,06/07/20,1ST FOUNDATIONS LTD,"10,000.00",Jul-20
EREWASH BOROUGH COUNCIL,219909,Balance Sheet,ICT Works,30/06/20,ADVANCED BUSINESS SOFTWARE & SOLUTIONS LIMITED,"15,920.46",Jul-20
EREWASH BOROUGH COUNCIL,219783,Balance Sheet,COVID19 Discretionary Business Grants,15/07/20,ADVANCED VENDING SERVICES LTD,"2,000.00",Jul-20
EREWASH BOROUGH COUNCIL,219440,Balance Sheet,COVID19 Discretionary Business Grants,02/07/20,AIRVEND UL LTD,"3,000.00",Jul-20
EREWASH BOROUGH COUNCIL,219633,Balance Sheet,COVID19 Discretionary Business Grants,09/07/20,AJ TASSI LIMITED,"4,000.00",Jul-20
EREWASH BOROUGH COUNCIL,219805,Balance Sheet,COVID19 Discretionary Business Grants,15/07/20,AJ TASSI LIMITED,"1,000.00",Jul-20
EREWASH BOROUGH COUNCIL,219800,Balance Sheet,COVID19 Discretionary Business Grants,15/07/20,AJKM LIMITED,"1,500.00",Jul-20
EREWASH BOROUGH COUNCIL,219607,Balance Sheet,COVID19 Discretionary Business Grants,08/07/20,AJKM LIMITED,"6,000.00",Jul-20
EREWASH BOROUGH COUNCIL,219736,Treasury Management and Bank Charges,Allpay/Post Office Charges,30/06/20,ALLPAY LIMITED,"1,107.58",Jul-20
EREWASH BOROUGH COUNCIL,219511,Green Space,Reactive Maintenance,30/06/20,ALPHA DRAIN SERVICES,670.00,Jul-20
EREWASH BOROUGH COUNCIL,219881,Closed Cemeteries,Planned Preventative Maintenance,09/07/20,ALPHA DRAIN SERVICES,320.00,Jul-20
EREWASH BOROUGH COUNCIL,219510,Property and Estates,Reactive Maintenance,01/07/20,ALPHA PARTNER (MIDLANDS)  LIMITED,"1,578.00",Jul-20
EREWASH BOROUGH COUNCIL,219524,Property and Estates,Reactive Maintenance,01/07/20,ALPHA PARTNER (MIDLANDS)  LIMITED,680.00,Jul-20
EREWASH BOROUGH COUNCIL,219060,Property and Estates,Reactive Maintenance,13/06/20,ALPHA PARTNER (MIDLANDS)  LIMITED,220.00,Jul-20
EREWASH BOROUGH COUNCIL,219712,Erewash Museum,Exhibitions,09/07/20,ALPHA PARTNER (MIDLANDS)  LIMITED,625.00,Jul-20
EREWASH BOROUGH COUNCIL,219526,Property and Estates,Reactive Maintenance,30/06/20,ALPHA PARTNER (MIDLANDS)  LIMITED,880.00,Jul-20
EREWASH BOROUGH COUNCIL,219525,Property and Estates,Reactive Maintenance,30/06/20,ALPHA PARTNER (MIDLANDS)  LIMITED,670.00,Jul-20
EREWASH BOROUGH COUNCIL,219067,Property and Estates,Planned Preventative Maintenance,13/06/20,ALPHA PARTNER (MIDLANDS)  LIMITED,365.00,Jul-20
EREWASH BOROUGH COUNCIL,219550,Property and Estates,Reactive Maintenance,01/07/20,ALPHA PARTNER (MIDLANDS)  LIMITED,730.00,Jul-20
EREWASH BOROUGH COUNCIL,219553,Property and Estates,Reactive Maintenance,03/07/20,ALPHA PARTNER (MIDLANDS)  LIMITED,910.00,Jul-20
EREWASH BOROUGH COUNCIL,219523,Property and Estates,Reactive Maintenance,01/07/20,ALPHA PARTNER (MIDLANDS)  LIMITED,420.00,Jul-20
EREWASH BOROUGH COUNCIL,219058,Property and Estates,Reactive Maintenance,09/06/20,ALPHA PARTNER (MIDLANDS)  LIMITED,400.00,Jul-20
EREWASH BOROUGH COUNCIL,219020,Green Space,Materials/Consumables,08/06/20,AMBEROL LIMITED,763.04,Jul-20
EREWASH BOROUGH COUNCIL,219346,ICT Support Services,Office Paper,11/06/20,ANTALIS DOCUMENT SUPPLIES,241.00,Jul-20
EREWASH BOROUGH COUNCIL,219631,Balance Sheet,COVID19 Discretionary Business Grants,09/07/20,APPLETREE CATERING,"6,000.00",Jul-20
EREWASH BOROUGH COUNCIL,219793,Balance Sheet,COVID19 Discretionary Business Grants,15/07/20,APPLETREE CATERING,"1,500.00",Jul-20
EREWASH BOROUGH COUNCIL,219544,Green Space,Materials/Consumables,17/06/20,AQUAM WATER SERVICES LIMITED,"1,230.00",Jul-20
EREWASH BOROUGH COUNCIL,219543,Green Space,Materials/Consumables,17/06/20,AQUAM WATER SERVICES LIMITED,"1,230.00",Jul-20
EREWASH BOROUGH COUNCIL,219469,Balance Sheet,COVID19 Discretionary Business Grants,06/07/20,ARENA COMMUNITY,"10,000.00",Jul-20
EREWASH BOROUGH COUNCIL,219461,Balance Sheet,COVID19 Discretionary Business Grants,06/07/20,ARTISTIC UPHOLSTERY LTD.,"10,000.00",Jul-20
EREWASH BOROUGH COUNCIL,220030,Homelessness,Temporary Accommodation,01/06/20,ASCOT HOTEL,280.00,Jul-20
EREWASH BOROUGH COUNCIL,220031,Homelessness,Temporary Accommodation,08/06/20,ASCOT HOTEL,280.00,Jul-20
EREWASH BOROUGH COUNCIL,220029,Homelessness,Temporary Accommodation,25/05/20,ASCOT HOTEL,280.00,Jul-20
EREWASH BOROUGH COUNCIL,219624,Balance Sheet,COVID19 Discretionary Business Grants,09/07/20,ASHLEY KATE HR,"10,000.00",Jul-20
EREWASH BOROUGH COUNCIL,219193,Building Control - Fee Earning,Computer Software,19/06/20,ASTUN TECHNOLOGY LTD,"1,000.00",Jul-20
EREWASH BOROUGH COUNCIL,219744,Infectious Diseases and Food Poisoning,Work In Default,04/06/20,AW LYMN LTD,"1,412.00",Jul-20
EREWASH BOROUGH COUNCIL,219932,Infectious Diseases and Food Poisoning,Work In Default,02/07/20,AW LYMN LTD,"1,430.00",Jul-20
EREWASH BOROUGH COUNCIL,219714,Balance Sheet,Customer Debtor Refunds,14/07/20,AW LYMN LTD,"1,530.00",Jul-20
EREWASH BOROUGH COUNCIL,219459,Balance Sheet,COVID19 Discretionary Business Grants,06/07/20,B & B KNITWEAR,"10,000.00",Jul-20
EREWASH BOROUGH COUNCIL,219538,Public Conveniences,Materials/Consumables,29/06/20,BANNER GROUP LIMITED,332.99,Jul-20
EREWASH BOROUGH COUNCIL,219774,Balance Sheet,COVID19 Discretionary Business Grants,15/07/20,BARE,"3,000.00",Jul-20
EREWASH BOROUGH COUNCIL,219766,Balance Sheet,COVID19 Discretionary Business Grants,15/07/20,BE GE SEATING UK LTD,"5,000.00",Jul-20
EREWASH BOROUGH COUNCIL,219970,Balance Sheet,COVID19 Discretionary Business Grants,27/07/20,BLACK HOLE BREWERY,"5,000.00",Jul-20
EREWASH BOROUGH COUNCIL,219689,Green Space,Materials/Consumables,06/07/20,BLACKBOX-AV,"1,084.00",Jul-20
EREWASH BOROUGH COUNCIL,219723,Parish Precepts,Breadsall - Precept,06/07/20,BREADSALL PARISH COUNCIL,"3,375.00",Jul-20
EREWASH BOROUGH COUNCIL,219723,Parish Council Concurrent Functions,Breadsall - Precept,06/07/20,BREADSALL PARISH COUNCIL,"1,361.00",Jul-20
EREWASH BOROUGH COUNCIL,219724,Parish Council Concurrent Functions,Breaston - Precept,06/07/20,BREASTON PARISH COUNCIL,"11,494.00",Jul-20
EREWASH BOROUGH COUNCIL,219724,Parish Precepts,Breaston - Precept,06/07/20,BREASTON PARISH COUNCIL,"12,960.00",Jul-20
EREWASH BOROUGH COUNCIL,219522,ICT Support Services,Telephones,22/06/20,BRITISH TELECOMMUNICATIONS PLC,"1,735.91",Jul-20
EREWASH BOROUGH COUNCIL,219994,ICT Support Services,Data Lines,14/07/20,BT GLOBAL SERVICES,"6,833.65",Jul-20
EREWASH BOROUGH COUNCIL,219888,Occupational Health and Welfare,Occupational Health Service,01/06/20,BUPA HEALTH CLINICS,406.44,Jul-20
EREWASH BOROUGH COUNCIL,219889,Occupational Health and Welfare,Occupational Health Service,01/07/20,BUPA HEALTH CLINICS,406.44,Jul-20
EREWASH BOROUGH COUNCIL,219890,Occupational Health and Welfare,Occupational Health Service,01/05/20,BUPA HEALTH CLINICS,406.44,Jul-20
EREWASH BOROUGH COUNCIL,219879,Green Space,Materials/Consumables,07/05/20,CALOR GAS LIMITED,"1,310.36",Jul-20
EREWASH BOROUGH COUNCIL,219451,Balance Sheet,COVID19 Discretionary Business Grants,02/07/20,CANAAN  TRUST,"10,000.00",Jul-20
EREWASH BOROUGH COUNCIL,219974,Community Grants,Project Grants,13/07/20,CANAAN  TRUST,"1,000.00",Jul-20
EREWASH BOROUGH COUNCIL,219765,Balance Sheet,COVID19 Discretionary Business Grants,15/07/20,CANTERBURY'S HOME IMPROVEMENTS,"5,000.00",Jul-20
EREWASH BOROUGH COUNCIL,219709,Balance Sheet,COVID19 Discretionary Business Grants,14/07/20,CARLTON FURNITURE LTD,"7,500.00",Jul-20
EREWASH BOROUGH COUNCIL,219666,Economic Development,Project Grants,07/07/20,CASTLE SURVEYS LIMITED,"2,995.00",Jul-20
EREWASH BOROUGH COUNCIL,219677,Building Control - Fee Earning,General Equipment,29/06/20,CCS MEDIA LIMITED,995.00,Jul-20
EREWASH BOROUGH COUNCIL,219364,ICT Support Services,General Equipment,23/06/20,CCS MEDIA LIMITED,"3,281.25",Jul-20
EREWASH BOROUGH COUNCIL,219431,Building Control - Fee Earning,General Equipment,25/06/20,CCS MEDIA LIMITED,445.35,Jul-20
EREWASH BOROUGH COUNCIL,219432,Building Control - Fee Earning,General Equipment,25/06/20,CCS MEDIA LIMITED,260.60,Jul-20
EREWASH BOROUGH COUNCIL,219434,Building Control - Fee Earning,General Equipment,25/06/20,CCS MEDIA LIMITED,876.88,Jul-20
EREWASH BOROUGH COUNCIL,219945,Balance Sheet,Fuel Store,13/07/20,CERTAS ENERGY UK LIMITED T/A CARLTON FUELS,"26,964.00",Jul-20
EREWASH BOROUGH COUNCIL,219699,Balance Sheet,COVID19 Discretionary Business Grants,14/07/20,CHOP SHOP LIMITED,"3,000.00",Jul-20
EREWASH BOROUGH COUNCIL,219542,Revenues and Benefits,Software Licences,30/06/20,CIVICA UK LIMITED,"2,158.38",Jul-20
EREWASH BOROUGH COUNCIL,219541,Housing Benefit Administration,Project Grants,30/06/20,CIVICA UK LIMITED,462.82,Jul-20
EREWASH BOROUGH COUNCIL,219614,Economic Development,Project Grants,26/06/20,CLEARWAY (MIDLANDS) LIMITED,640.00,Jul-20
EREWASH BOROUGH COUNCIL,219499,Household/Residual Waste Collection,Hire Charges,30/06/20,CLOSE BROTHERS VEHICLE HIRE LTD,532.00,Jul-20
EREWASH BOROUGH COUNCIL,219183,Green Space,Contracted Services,08/06/20,COLSON TRANSPORT LTD,"1,800.00",Jul-20
EREWASH BOROUGH COUNCIL,219456,Balance Sheet,COVID19 Discretionary Business Grants,06/07/20,COMPLETE COOLING SERVICES LTD,"6,000.00",Jul-20
EREWASH BOROUGH COUNCIL,219796,Balance Sheet,COVID19 Discretionary Business Grants,15/07/20,COMPLETE COOLING SERVICES LTD,"1,500.00",Jul-20
EREWASH BOROUGH COUNCIL,219819,Property and Estates,PPM Mechanical and Equipment,07/07/20,CONCEPT ELEVATORS (UK) LTD,360.67,Jul-20
EREWASH BOROUGH COUNCIL,219830,Household/Residual Waste Collection,Repairs and Maintenance,23/06/20,COOLAIR LOGAN LIMITED,225.00,Jul-20
EREWASH BOROUGH COUNCIL,219831,Household/Residual Waste Collection,Repairs and Maintenance,23/06/20,COOLAIR LOGAN LIMITED,225.00,Jul-20
EREWASH BOROUGH COUNCIL,219829,Household/Residual Waste Collection,Repairs and Maintenance,23/06/20,COOLAIR LOGAN LIMITED,225.00,Jul-20
EREWASH BOROUGH COUNCIL,219623,Balance Sheet,COVID19 Discretionary Business Grants,09/07/20,CORNERSTONE DISTRIBUTION LTD,"6,000.00",Jul-20
EREWASH BOROUGH COUNCIL,219789,Balance Sheet,COVID19 Discretionary Business Grants,15/07/20,CORNERSTONE DISTRIBUTION LTD,"1,500.00",Jul-20
EREWASH BOROUGH COUNCIL,219627,Balance Sheet,COVID19 Discretionary Business Grants,09/07/20,CRASSUS GRABHIRE LTD,"3,000.00",Jul-20
EREWASH BOROUGH COUNCIL,219788,Balance Sheet,COVID19 Discretionary Business Grants,15/07/20,CRASSUS GRABHIRE LTD,"2,000.00",Jul-20
EREWASH BOROUGH COUNCIL,219790,Balance Sheet,COVID19 Discretionary Business Grants,15/07/20,CREATIVE PROJECTS (MIDS) LTD,"1,500.00",Jul-20
EREWASH BOROUGH COUNCIL,219625,Balance Sheet,COVID19 Discretionary Business Grants,09/07/20,CREATIVE PROJECTS (MIDS) LTD,"6,000.00",Jul-20
EREWASH BOROUGH COUNCIL,219422,Street Scene,Materials/Consumables,29/06/20,CROMWELL POLYTHENE LTD,"1,180.00",Jul-20
EREWASH BOROUGH COUNCIL,219482,Green Space,Materials/Consumables,16/06/20,CROMWELL POLYTHENE LTD,686.70,Jul-20
EREWASH BOROUGH COUNCIL,220046,Homelessness,Temporary Accommodation,25/05/20,CROWN HOTEL OPERATIONS LIMITED,420.00,Jul-20
EREWASH BOROUGH COUNCIL,220045,Homelessness,Temporary Accommodation,29/06/20,CROWN HOTEL OPERATIONS LIMITED,"1,900.80",Jul-20
EREWASH BOROUGH COUNCIL,219367,Civic Transport,Hire Charges,24/06/20,CRUISE-IN-CONTROL LIMITED,"1,000.00",Jul-20
EREWASH BOROUGH COUNCIL,219606,Balance Sheet,COVID19 Discretionary Business Grants,08/07/20,CRUSADER PRODUCTS LTD,"25,000.00",Jul-20
EREWASH BOROUGH COUNCIL,219806,Balance Sheet,COVID19 Discretionary Business Grants,15/07/20,CUSTOM RADIATOR COVERS LTD,"1,000.00",Jul-20
EREWASH BOROUGH COUNCIL,219725,Parish Precepts,Dale Abbey - Precept,06/07/20,DALE ABBEY PARISH COUNCIL,"2,195.00",Jul-20
EREWASH BOROUGH COUNCIL,219725,Parish Council Concurrent Functions,Dale Abbey - Precept,06/07/20,DALE ABBEY PARISH COUNCIL,"2,392.00",Jul-20
EREWASH BOROUGH COUNCIL,219455,Balance Sheet,COVID19 Discretionary Business Grants,03/07/20,DAVID GUNDRY UPHOLSTERY LTD.,"10,000.00",Jul-20
EREWASH BOROUGH COUNCIL,219609,Balance Sheet,COVID19 Discretionary Business Grants,08/07/20,DAVIES MOTORCYCLES,"3,000.00",Jul-20
EREWASH BOROUGH COUNCIL,219854,Trade Waste,Repairs and Maintenance,13/07/20,DENNIS EAGLE LTD,243.10,Jul-20
EREWASH BOROUGH COUNCIL,219261,Household/Residual Waste Collection,Repairs and Maintenance,19/06/20,DENNIS EAGLE LTD,"2,234.29",Jul-20
EREWASH BOROUGH COUNCIL,219415,Trade Waste,Repairs and Maintenance,09/06/20,DENNIS EAGLE LTD,222.80,Jul-20
EREWASH BOROUGH COUNCIL,219415,Household/Residual Waste Collection,Repairs and Maintenance,09/06/20,DENNIS EAGLE LTD,657.38,Jul-20
EREWASH BOROUGH COUNCIL,219413,Household/Residual Waste Collection,Repairs and Maintenance,09/06/20,DENNIS EAGLE LTD,817.52,Jul-20
EREWASH BOROUGH COUNCIL,219984,Household/Residual Waste Collection,Repairs and Maintenance,23/07/20,DENNIS EAGLE LTD,314.19,Jul-20
EREWASH BOROUGH COUNCIL,219361,Trade Waste,Repairs and Maintenance,22/06/20,DENNIS EAGLE LTD,800.70,Jul-20
EREWASH BOROUGH COUNCIL,219362,Household/Residual Waste Collection,Repairs and Maintenance,22/06/20,DENNIS EAGLE LTD,744.19,Jul-20
EREWASH BOROUGH COUNCIL,219567,Household/Residual Waste Collection,Repairs and Maintenance,02/07/20,DENNIS EAGLE LTD,"1,228.60",Jul-20
EREWASH BOROUGH COUNCIL,219363,Trade Waste,Repairs and Maintenance,22/06/20,DENNIS EAGLE LTD,480.01,Jul-20
EREWASH BOROUGH COUNCIL,219983,Household/Residual Waste Collection,Repairs and Maintenance,22/07/20,DENNIS EAGLE LTD,518.00,Jul-20
EREWASH BOROUGH COUNCIL,219741,Non Domestic Rates Income and Expenditure,NNDR Tariff,30/04/20,DERBY CITY COUNCIL,"585,635.60",Jul-20
EREWASH BOROUGH COUNCIL,219742,Non Domestic Rates Income and Expenditure,NNDR Tariff,19/05/20,DERBY CITY COUNCIL,"585,635.60",Jul-20
EREWASH BOROUGH COUNCIL,219743,Non Domestic Rates Income and Expenditure,NNDR Tariff,22/06/20,DERBY CITY COUNCIL,"585,635.60",Jul-20
EREWASH BOROUGH COUNCIL,219745,Homelessness,Contribution to Shared Service,02/07/20,DERBY CITY COUNCIL,"9,131.00",Jul-20
EREWASH BOROUGH COUNCIL,219597,Homelessness,Temporary Accommodation,15/06/20,DERBY GUESTHOUSE LIMITED,840.00,Jul-20
EREWASH BOROUGH COUNCIL,219392,Homelessness,Temporary Accommodation,15/06/20,DERBY GUESTHOUSE LIMITED,240.00,Jul-20
EREWASH BOROUGH COUNCIL,220021,Homelessness,Temporary Accommodation,29/06/20,DERBY GUESTHOUSE LIMITED,560.00,Jul-20
EREWASH BOROUGH COUNCIL,219596,Homelessness,Temporary Accommodation,01/06/20,DERBY GUESTHOUSE LIMITED,420.00,Jul-20
EREWASH BOROUGH COUNCIL,220022,Homelessness,Temporary Accommodation,13/07/20,DERBY GUESTHOUSE LIMITED,440.00,Jul-20
EREWASH BOROUGH COUNCIL,219595,Homelessness,Temporary Accommodation,21/06/20,DERBY GUESTHOUSE LIMITED,300.00,Jul-20
EREWASH BOROUGH COUNCIL,219598,Homelessness,Temporary Accommodation,24/05/20,DERBY GUESTHOUSE LIMITED,540.00,Jul-20
EREWASH BOROUGH COUNCIL,219897,Balance Sheet,Payroll Collection A/c - Credit Union,22/07/20,DERBYSHIRE COMMUNITY BANK,330.00,Jul-20
EREWASH BOROUGH COUNCIL,219720,Balance Sheet,Payroll Collection A/c - Superannuation,14/07/20,DERBYSHIRE COUNTY COUNCIL...,"206,630.93",Jul-20
EREWASH BOROUGH COUNCIL,219876,Balance Sheet,Payroll Collection A/c - Superannuation,21/07/20,DERBYSHIRE COUNTY COUNCIL...,348.82,Jul-20
EREWASH BOROUGH COUNCIL,219720,Balance Sheet,Payroll Collection A/c - Purchase Added Years,14/07/20,DERBYSHIRE COUNTY COUNCIL...,247.22,Jul-20
EREWASH BOROUGH COUNCIL,219470,Balance Sheet,Grant Payments,23/06/20,DERBYSHIRE COUNTY COUNCIL...,"4,660.65",Jul-20
EREWASH BOROUGH COUNCIL,219636,Personnel,Recruitment Expenses,08/07/20,DERBYSHIRE COUNTY COUNCIL...,224.00,Jul-20
EREWASH BOROUGH COUNCIL,219961,Contaminated Land,Site Investigations,13/07/20,DERBYSHIRE COUNTY COUNCIL...,561.84,Jul-20
EREWASH BOROUGH COUNCIL,219637,Personnel,Recruitment Expenses,08/07/20,DERBYSHIRE COUNTY COUNCIL...,224.00,Jul-20
EREWASH BOROUGH COUNCIL,219870,Balance Sheet,COVID19 Discretionary Business Grants,21/07/20,DESIGNER GLASS LIMITED,"10,000.00",Jul-20
EREWASH BOROUGH COUNCIL,219940,Green Space,Training,22/07/20,DIAMOND DRIVER TRAINING,275.00,Jul-20
EREWASH BOROUGH COUNCIL,219726,Parish Precepts,Draycott - Precept,06/07/20,DRAYCOTT PARISH COUNCIL,"12,123.00",Jul-20
EREWASH BOROUGH COUNCIL,219726,Parish Council Concurrent Functions,Draycott - Precept,06/07/20,DRAYCOTT PARISH COUNCIL,"7,542.00",Jul-20
EREWASH BOROUGH COUNCIL,219807,Balance Sheet,COVID19 Discretionary Business Grants,15/07/20,DUNDORE LIMITED,"1,000.00",Jul-20
EREWASH BOROUGH COUNCIL,219621,Balance Sheet,COVID19 Discretionary Business Grants,09/07/20,DUNDORE LIMITED,"4,000.00",Jul-20
EREWASH BOROUGH COUNCIL,219768,Balance Sheet,COVID19 Discretionary Business Grants,15/07/20,EAST MIDLANDS MEDICAL SERVICES LTD,"3,000.00",Jul-20
EREWASH BOROUGH COUNCIL,219863,Green Space,Materials/Consumables,03/07/20,EAST RIDING HORTICULTURE LTD,580.83,Jul-20
EREWASH BOROUGH COUNCIL,219344,Play Areas,Materials/Consumables,22/06/20,EASY GATE LTD,35.00,Jul-20
EREWASH BOROUGH COUNCIL,219344,Green Space,Contracted Services,22/06/20,EASY GATE LTD,"1,505.00",Jul-20
EREWASH BOROUGH COUNCIL,219592,Economic Development,Project Grants,21/06/20,EFFECTIVE SECURITY SERVICES LTD,"3,072.00",Jul-20
EREWASH BOROUGH COUNCIL,219442,Balance Sheet,COVID19 Discretionary Business Grants,02/07/20,ELEGANT BEAUTY BY EMMA,"3,000.00",Jul-20
EREWASH BOROUGH COUNCIL,219618,Balance Sheet,COVID19 Discretionary Business Grants,09/07/20,EM WOODTURNING LTD,"10,000.00",Jul-20
EREWASH BOROUGH COUNCIL,219546,Homelessness,Homelessness-Lease Properties,04/05/20,EMH HOMES,"1,170.53",Jul-20
EREWASH BOROUGH COUNCIL,219547,Homelessness,Homelessness-Lease Properties,04/05/20,EMH HOMES,"1,240.06",Jul-20
EREWASH BOROUGH COUNCIL,219548,Homelessness,Homelessness-Lease Properties,04/05/20,EMH HOMES,"1,142.62",Jul-20
EREWASH BOROUGH COUNCIL,219874,Balance Sheet,Payroll Collection A/c - Labour Party Funds,21/07/20,EREWASH LABOUR GROUP,554.24,Jul-20
EREWASH BOROUGH COUNCIL,219995,Economic Development,Grants and Subscriptions,01/07/20,EREWASH PARTNERSHIP LTD,"19,625.00",Jul-20
EREWASH BOROUGH COUNCIL,220062,Household/Residual Waste Collection,Hire Charges,20/07/20,EUROMUNICIPAL LTD,"1,700.00",Jul-20
EREWASH BOROUGH COUNCIL,220061,Household/Residual Waste Collection,Hire Charges,10/07/20,EUROMUNICIPAL LTD,"1,700.00",Jul-20
EREWASH BOROUGH COUNCIL,219599,Household/Residual Waste Collection,Hire Charges,19/06/20,EUROMUNICIPAL LTD,"1,700.00",Jul-20
EREWASH BOROUGH COUNCIL,220059,Household/Residual Waste Collection,Hire Charges,26/06/20,EUROMUNICIPAL LTD,"1,700.00",Jul-20
EREWASH BOROUGH COUNCIL,220060,Household/Residual Waste Collection,Hire Charges,04/07/20,EUROMUNICIPAL LTD,"1,700.00",Jul-20
EREWASH BOROUGH COUNCIL,219046,Street Scene,Repairs and Maintenance,04/06/20,EUROTRUCK MIDLANDS LTD,504.00,Jul-20
EREWASH BOROUGH COUNCIL,219654,Household/Residual Waste Collection,Repairs and Maintenance,02/07/20,EUROTRUCK MIDLANDS LTD,487.70,Jul-20
EREWASH BOROUGH COUNCIL,219562,Civic Accommodation - Long Eaton,Window Cleaning,06/07/20,EXCEL CLEANING SOLUTIONS LIMITED,235.00,Jul-20
EREWASH BOROUGH COUNCIL,219780,Balance Sheet,COVID19 Discretionary Business Grants,15/07/20,EXCLUSIVE BY DESIGN UK LTD,"2,000.00",Jul-20
EREWASH BOROUGH COUNCIL,219383,Street Scene,Agency Staff,08/06/20,EXTRA PERSONNEL LTD,"4,315.30",Jul-20
EREWASH BOROUGH COUNCIL,219577,Household/Residual Waste Collection,Agency Staff,25/05/20,EXTRA PERSONNEL LTD,"5,331.54",Jul-20
EREWASH BOROUGH COUNCIL,219583,Household/Residual Waste Collection,Agency Staff,22/06/20,EXTRA PERSONNEL LTD,"3,871.23",Jul-20
EREWASH BOROUGH COUNCIL,219383,Green Space,Agency Staff,08/06/20,EXTRA PERSONNEL LTD,930.12,Jul-20
EREWASH BOROUGH COUNCIL,219386,Green Space,Agency Staff,08/06/20,EXTRA PERSONNEL LTD,431.36,Jul-20
EREWASH BOROUGH COUNCIL,219385,Public Conveniences,Agency Staff,01/06/20,EXTRA PERSONNEL LTD,621.34,Jul-20
EREWASH BOROUGH COUNCIL,219681,Street Scene,Agency Staff,22/06/20,EXTRA PERSONNEL LTD,"4,174.32",Jul-20
EREWASH BOROUGH COUNCIL,219582,Kerbside Dry Recycling Collection,Agency Staff,08/06/20,EXTRA PERSONNEL LTD,"3,007.84",Jul-20
EREWASH BOROUGH COUNCIL,219384,Green Space,Agency Staff,01/06/20,EXTRA PERSONNEL LTD,997.52,Jul-20
EREWASH BOROUGH COUNCIL,219386,Street Scene,Agency Staff,08/06/20,EXTRA PERSONNEL LTD,"2,460.10",Jul-20
EREWASH BOROUGH COUNCIL,219582,Household/Residual Waste Collection,Agency Staff,08/06/20,EXTRA PERSONNEL LTD,"4,511.76",Jul-20
EREWASH BOROUGH COUNCIL,219583,Kerbside Dry Recycling Collection,Agency Staff,22/06/20,EXTRA PERSONNEL LTD,"2,580.82",Jul-20
EREWASH BOROUGH COUNCIL,219385,Green Space,Agency Staff,01/06/20,EXTRA PERSONNEL LTD,498.76,Jul-20
EREWASH BOROUGH COUNCIL,219386,Public Conveniences,Agency Staff,08/06/20,EXTRA PERSONNEL LTD,621.34,Jul-20
EREWASH BOROUGH COUNCIL,219382,Street Scene,Agency Staff,15/06/20,EXTRA PERSONNEL LTD,"4,327.95",Jul-20
EREWASH BOROUGH COUNCIL,219580,Household/Residual Waste Collection,Agency Staff,15/06/20,EXTRA PERSONNEL LTD,"3,862.91",Jul-20
EREWASH BOROUGH COUNCIL,219576,Kerbside Dry Recycling Collection,Agency Staff,04/05/20,EXTRA PERSONNEL LTD,"2,093.87",Jul-20
EREWASH BOROUGH COUNCIL,219385,Street Scene,Agency Staff,01/06/20,EXTRA PERSONNEL LTD,"2,826.55",Jul-20
EREWASH BOROUGH COUNCIL,219680,Green Space,Agency Staff,22/06/20,EXTRA PERSONNEL LTD,323.52,Jul-20
EREWASH BOROUGH COUNCIL,219387,Public Conveniences,Agency Staff,15/06/20,EXTRA PERSONNEL LTD,621.34,Jul-20
EREWASH BOROUGH COUNCIL,219384,Street Scene,Agency Staff,01/06/20,EXTRA PERSONNEL LTD,"3,547.52",Jul-20
EREWASH BOROUGH COUNCIL,219576,Household/Residual Waste Collection,Agency Staff,04/05/20,EXTRA PERSONNEL LTD,"3,140.81",Jul-20
EREWASH BOROUGH COUNCIL,219577,Kerbside Dry Recycling Collection,Agency Staff,25/05/20,EXTRA PERSONNEL LTD,"3,554.36",Jul-20
EREWASH BOROUGH COUNCIL,219580,Kerbside Dry Recycling Collection,Agency Staff,15/06/20,EXTRA PERSONNEL LTD,"2,575.27",Jul-20
EREWASH BOROUGH COUNCIL,219382,Green Space,Agency Staff,15/06/20,EXTRA PERSONNEL LTD,781.84,Jul-20
EREWASH BOROUGH COUNCIL,219387,Green Space,Agency Staff,15/06/20,EXTRA PERSONNEL LTD,323.52,Jul-20
EREWASH BOROUGH COUNCIL,219681,Green Space,Agency Staff,22/06/20,EXTRA PERSONNEL LTD,997.52,Jul-20
EREWASH BOROUGH COUNCIL,219680,Public Conveniences,Agency Staff,22/06/20,EXTRA PERSONNEL LTD,621.34,Jul-20
EREWASH BOROUGH COUNCIL,219387,Street Scene,Agency Staff,15/06/20,EXTRA PERSONNEL LTD,"3,529.45",Jul-20
EREWASH BOROUGH COUNCIL,219680,Street Scene,Agency Staff,22/06/20,EXTRA PERSONNEL LTD,"3,331.89",Jul-20
EREWASH BOROUGH COUNCIL,219581,Kerbside Dry Recycling Collection,Agency Staff,01/06/20,EXTRA PERSONNEL LTD,"2,980.76",Jul-20
EREWASH BOROUGH COUNCIL,219581,Household/Residual Waste Collection,Agency Staff,01/06/20,EXTRA PERSONNEL LTD,"4,471.14",Jul-20
EREWASH BOROUGH COUNCIL,219437,Balance Sheet,COVID19 Discretionary Business Grants,02/07/20,F & M STEED LTD,"25,000.00",Jul-20
EREWASH BOROUGH COUNCIL,219700,Balance Sheet,COVID19 Discretionary Business Grants,14/07/20,FASTLATHE LIMITED,"7,500.00",Jul-20
EREWASH BOROUGH COUNCIL,219794,Balance Sheet,COVID19 Discretionary Business Grants,15/07/20,FOREST SCHOOL NURSERIES LTD,"1,500.00",Jul-20
EREWASH BOROUGH COUNCIL,219771,Balance Sheet,COVID19 Discretionary Business Grants,15/07/20,FORWARD FABRICATIONS LIMITED,"5,000.00",Jul-20
EREWASH BOROUGH COUNCIL,219706,Balance Sheet,COVID19 Discretionary Business Grants,14/07/20,FOUR L CARS LTD,"5,000.00",Jul-20
EREWASH BOROUGH COUNCIL,219381,Revenues and Benefits,Maintenance of Equipment,01/06/20,FRAMA UK,309.00,Jul-20
EREWASH BOROUGH COUNCIL,219517,Property and Estates,Repairs and Maintenance,18/12/19,GDUK DOOR SOLUTIONS LIMITED,300.00,Jul-20
EREWASH BOROUGH COUNCIL,219993,Property and Estates,PPM Mechanical and Equipment,25/02/20,GDUK DOOR SOLUTIONS LIMITED,245.00,Jul-20
EREWASH BOROUGH COUNCIL,219992,Property and Estates,Repairs and Maintenance,31/03/20,GDUK DOOR SOLUTIONS LIMITED,227.50,Jul-20
EREWASH BOROUGH COUNCIL,219670,Balance Sheet,Building Works,03/07/20,GEO POLLUTION TECHNOLOGIES UK LIMITED,"1,482.00",Jul-20
EREWASH BOROUGH COUNCIL,219669,Balance Sheet,Building Works,03/07/20,GEO POLLUTION TECHNOLOGIES UK LIMITED,392.50,Jul-20
EREWASH BOROUGH COUNCIL,219663,Green Space,Contracted Services,05/07/20,GO TRAFFIC MANAGEMENT,795.00,Jul-20
EREWASH BOROUGH COUNCIL,219310,Green Space,Contracted Services,21/06/20,GO TRAFFIC MANAGEMENT,895.00,Jul-20
EREWASH BOROUGH COUNCIL,219795,Balance Sheet,COVID19 Discretionary Business Grants,15/07/20,GOLDBURY PAINT & POWDERCOAT LTD,"1,500.00",Jul-20
EREWASH BOROUGH COUNCIL,219280,Homelessness,Agency Staff,10/06/20,GREENACRE RECRUITMENT,565.63,Jul-20
EREWASH BOROUGH COUNCIL,219389,Homelessness,Agency Staff,17/06/20,GREENACRE RECRUITMENT,655.66,Jul-20
EREWASH BOROUGH COUNCIL,219390,Homelessness,Agency Staff,25/03/20,GREENACRE RECRUITMENT,333.79,Jul-20
EREWASH BOROUGH COUNCIL,219077,Homelessness,Agency Staff,03/06/20,GREENACRE RECRUITMENT,603.31,Jul-20
EREWASH BOROUGH COUNCIL,219748,Homelessness,Agency Staff,30/06/20,GREENACRE RECRUITMENT,692.50,Jul-20
EREWASH BOROUGH COUNCIL,219747,Homelessness,Agency Staff,24/06/20,GREENACRE RECRUITMENT,661.20,Jul-20
EREWASH BOROUGH COUNCIL,219444,Balance Sheet,COVID19 Discretionary Business Grants,02/07/20,H PELL @ BROWNS HAIRDRESSING,"3,000.00",Jul-20
EREWASH BOROUGH COUNCIL,219801,Balance Sheet,COVID19 Discretionary Business Grants,15/07/20,HARRY STEER LTD,"1,500.00",Jul-20
EREWASH BOROUGH COUNCIL,219630,Balance Sheet,COVID19 Discretionary Business Grants,09/07/20,HARRY STEER LTD,"6,000.00",Jul-20
EREWASH BOROUGH COUNCIL,219443,Balance Sheet,COVID19 Discretionary Business Grants,02/07/20,REDACTED PERSONAL DATA,"3,000.00",Jul-20
EREWASH BOROUGH COUNCIL,219767,Balance Sheet,COVID19 Discretionary Business Grants,15/07/20,HELPING HOOVES DERBYSHIRE CIC,"3,000.00",Jul-20
EREWASH BOROUGH COUNCIL,219427,Green Space,Materials/Consumables,29/06/20,HENTON & CHATTELL LTD,249.17,Jul-20
EREWASH BOROUGH COUNCIL,219495,Green Space,Materials/Consumables,02/07/20,HENTON & CHATTELL LTD,"1,551.54",Jul-20
EREWASH BOROUGH COUNCIL,219336,Green Space,Repairs and Maintenance,24/06/20,HENTON & CHATTELL LTD,430.09,Jul-20
EREWASH BOROUGH COUNCIL,219651,Green Space,Repairs and Maintenance,02/06/20,HENTON & CHATTELL LTD,484.14,Jul-20
EREWASH BOROUGH COUNCIL,219478,Green Space,Repairs and Maintenance,02/07/20,HENTON & CHATTELL LTD,294.87,Jul-20
EREWASH BOROUGH COUNCIL,219426,Green Space,Materials/Consumables,29/06/20,HENTON & CHATTELL LTD,246.00,Jul-20
EREWASH BOROUGH COUNCIL,219791,Balance Sheet,COVID19 Discretionary Business Grants,15/07/20,HH AND SPOOKY NIGHTS LTD,"1,500.00",Jul-20
EREWASH BOROUGH COUNCIL,219898,Balance Sheet,Payroll Collection A/c - Attachment Orders,22/07/20,HMCTS,251.59,Jul-20
EREWASH BOROUGH COUNCIL,219721,Balance Sheet,Apprenticeship Levy,14/07/20,HMRC CUMBERNAULD,"3,281.00",Jul-20
EREWASH BOROUGH COUNCIL,219328,Balance Sheet,Payroll Collection A/c - Income Tax,30/06/20,HMRC CUMBERNAULD,242.40,Jul-20
EREWASH BOROUGH COUNCIL,219721,Balance Sheet,Payroll Collection A/c - National Insurance,14/07/20,HMRC CUMBERNAULD,"99,915.10",Jul-20
EREWASH BOROUGH COUNCIL,219328,Balance Sheet,Payroll Collection A/c - National Insurance,30/06/20,HMRC CUMBERNAULD,388.01,Jul-20
EREWASH BOROUGH COUNCIL,219721,Balance Sheet,Payroll Collection A/c - Income Tax,14/07/20,HMRC CUMBERNAULD,"65,555.46",Jul-20
EREWASH BOROUGH COUNCIL,219875,Balance Sheet,Payroll Collection A/c - Income Tax,21/07/20,HMRC CUMBERNAULD,445.05,Jul-20
EREWASH BOROUGH COUNCIL,219721,Personnel,Apprenticeship Levy,14/07/20,HMRC CUMBERNAULD,"-1,250.00",Jul-20
EREWASH BOROUGH COUNCIL,219721,Balance Sheet,Payroll Collection A/c - Recovery of Student Loan,14/07/20,HMRC CUMBERNAULD,"1,089.00",Jul-20
EREWASH BOROUGH COUNCIL,219971,Balance Sheet,Payroll Collection A/c - Income Tax,28/07/20,HMRC CUMBERNAULD,268.60,Jul-20
EREWASH BOROUGH COUNCIL,219612,Balance Sheet,COVID19 Discretionary Business Grants,08/07/20,IBC SCHOOL OF DANCING,"3,000.00",Jul-20
EREWASH BOROUGH COUNCIL,219622,Balance Sheet,COVID19 Discretionary Business Grants,09/07/20,ILKESTON JOINERY LTD,"10,000.00",Jul-20
EREWASH BOROUGH COUNCIL,219619,Balance Sheet,COVID19 Discretionary Business Grants,09/07/20,IMPACT MARKETING AND PUBLICITY LTD,"10,000.00",Jul-20
EREWASH BOROUGH COUNCIL,219803,Balance Sheet,COVID19 Discretionary Business Grants,15/07/20,INDEPENDENT AUDIT AND INSPECTION SERVICES LTD,"1,000.00",Jul-20
EREWASH BOROUGH COUNCIL,219438,Balance Sheet,COVID19 Discretionary Business Grants,02/07/20,INDEPENDENT AUDIT AND INSPECTION SERVICES LTD,"2,000.00",Jul-20
EREWASH BOROUGH COUNCIL,219638,Corporate Health and Safety,Recruitment Expenses,01/07/20,INFORMA MARKETS (UK) LTD,647.50,Jul-20
EREWASH BOROUGH COUNCIL,219638,Personnel,Recruitment Expenses,01/07/20,INFORMA MARKETS (UK) LTD,647.50,Jul-20
EREWASH BOROUGH COUNCIL,219811,Balance Sheet,COVID19 Discretionary Business Grants,20/07/20,JCH INTERIORS LTD,"3,000.00",Jul-20
EREWASH BOROUGH COUNCIL,219701,Balance Sheet,COVID19 Discretionary Business Grants,14/07/20,JDB ENTERPRISES ILKESTON LTD,"10,000.00",Jul-20
EREWASH BOROUGH COUNCIL,219632,Balance Sheet,COVID19 Discretionary Business Grants,09/07/20,REDACTED PERSONAL DATA,"3,000.00",Jul-20
EREWASH BOROUGH COUNCIL,219776,Balance Sheet,COVID19 Discretionary Business Grants,15/07/20,REDACTED PERSONAL DATA,"2,000.00",Jul-20
EREWASH BOROUGH COUNCIL,219089,Green Space,Materials/Consumables,11/06/20,KERNOCK PARK PLANTS,"1,985.00",Jul-20
EREWASH BOROUGH COUNCIL,219090,Green Space,Materials/Consumables,11/06/20,KERNOCK PARK PLANTS,"1,850.00",Jul-20
EREWASH BOROUGH COUNCIL,219756,Balance Sheet,Childcare Salary Sacrifice-Kiddie Vouchers,03/07/20,KIDDIVOUCHERS LTD,938.29,Jul-20
EREWASH BOROUGH COUNCIL,219786,Balance Sheet,COVID19 Discretionary Business Grants,15/07/20,KIMMITT TEMPERING SERVICES LTD,"2,000.00",Jul-20
EREWASH BOROUGH COUNCIL,219462,Balance Sheet,COVID19 Discretionary Business Grants,06/07/20,KIMMITT TEMPERING SERVICES LTD,"3,000.00",Jul-20
EREWASH BOROUGH COUNCIL,219428,Front Line Support Services,Security,31/05/20,KINGS ARMOURED SECURITY SERVICES,257.60,Jul-20
EREWASH BOROUGH COUNCIL,219758,Front Line Support Services,Security,30/06/20,KINGS ARMOURED SECURITY SERVICES,708.40,Jul-20
EREWASH BOROUGH COUNCIL,219758,Cemeteries,Contracted Services,30/06/20,KINGS ARMOURED SECURITY SERVICES,16.10,Jul-20
EREWASH BOROUGH COUNCIL,219533,ICT Support Services,General Equipment,01/07/20,KINGSFIELD COMPUTER PRODUCTS LIMITED,295.83,Jul-20
EREWASH BOROUGH COUNCIL,219804,Balance Sheet,COVID19 Discretionary Business Grants,15/07/20,KL PLASTICS,"1,000.00",Jul-20
EREWASH BOROUGH COUNCIL,219457,Balance Sheet,COVID19 Discretionary Business Grants,06/07/20,KL PLASTICS,"2,000.00",Jul-20
EREWASH BOROUGH COUNCIL,219760,Reprographics,Printing and Stationery,11/06/20,KONICA MINOLTA BUSINESS SOLUTIONS (UK) LTD,"1,014.93",Jul-20
EREWASH BOROUGH COUNCIL,219761,Reprographics,Printing and Stationery,30/06/20,KONICA MINOLTA BUSINESS SOLUTIONS (UK) LTD,358.15,Jul-20
EREWASH BOROUGH COUNCIL,219203,Green Space,Materials/Consumables,12/06/20,KRM BUILDING SUPPLIES LTD,219.16,Jul-20
EREWASH BOROUGH COUNCIL,219176,Green Space,Materials/Consumables,10/06/20,KRM BUILDING SUPPLIES LTD,208.71,Jul-20
EREWASH BOROUGH COUNCIL,219309,Green Space,Materials/Consumables,25/06/20,KRM BUILDING SUPPLIES LTD,328.74,Jul-20
EREWASH BOROUGH COUNCIL,219215,ICT Support Services,Equipment Leasing Charge,17/06/20,KYOCERA DOCUMENT SOLUTIONS (UK) LTD,"2,634.42",Jul-20
EREWASH BOROUGH COUNCIL,219458,Balance Sheet,COVID19 Discretionary Business Grants,06/07/20,L & S HOME COMFORTS,"3,000.00",Jul-20
EREWASH BOROUGH COUNCIL,219388,Building Control - Fee Earning,Subscriptions,31/03/20,LABC,"4,844.58",Jul-20
EREWASH BOROUGH COUNCIL,219809,Street Scene,Contracted Services,01/07/20,LANGUARD LTD,"3,511.35",Jul-20
EREWASH BOROUGH COUNCIL,218921,Green Space,Materials/Consumables,03/06/20,LEDAM MAINTENANCE SUPPLIES,219.00,Jul-20
EREWASH BOROUGH COUNCIL,219368,Registration of Electors,Subscriptions,15/06/20,LEXISNEXIS BUTTERWORTHS,427.00,Jul-20
EREWASH BOROUGH COUNCIL,219410,Communications,General Publicity and Promotion,01/04/20,LG COMMUNICATIONS,250.00,Jul-20
EREWASH BOROUGH COUNCIL,219797,Balance Sheet,COVID19 Discretionary Business Grants,15/07/20,LIEVENS FURNITURE LIMITED,"1,500.00",Jul-20
EREWASH BOROUGH COUNCIL,219448,Balance Sheet,COVID19 Discretionary Business Grants,02/07/20,LIEVENS FURNITURE LIMITED,"6,000.00",Jul-20
EREWASH BOROUGH COUNCIL,219450,Balance Sheet,COVID19 Discretionary Business Grants,02/07/20,LIFESTYLE1.COM LTD,"3,000.00",Jul-20
EREWASH BOROUGH COUNCIL,219787,Balance Sheet,COVID19 Discretionary Business Grants,15/07/20,LIGHTBULB CREDIT LTD,"2,000.00",Jul-20
EREWASH BOROUGH COUNCIL,219784,Balance Sheet,COVID19 Discretionary Business Grants,15/07/20,LIMETREE KITCHENS BATHROOMS LTD,"2,000.00",Jul-20
EREWASH BOROUGH COUNCIL,219727,Parish Council Concurrent Functions,Little Eaton - Precept,06/07/20,LITTLE EATON PARISH COUNCIL,"3,257.00",Jul-20
EREWASH BOROUGH COUNCIL,219727,Parish Precepts,Little Eaton - Precept,06/07/20,LITTLE EATON PARISH COUNCIL,"4,341.00",Jul-20
EREWASH BOROUGH COUNCIL,219770,Balance Sheet,COVID19 Discretionary Business Grants,15/07/20,LITTLE EATON PLAY SCHOOL,"5,000.00",Jul-20
EREWASH BOROUGH COUNCIL,219740,Treasury Management and Bank Charges,Unpaid Cheque Fees,10/06/20,LLOYDS BANK,25.56,Jul-20
EREWASH BOROUGH COUNCIL,220097,Treasury Management and Bank Charges,Unpaid Cheque Fees,10/07/20,LLOYDS BANK,71.43,Jul-20
EREWASH BOROUGH COUNCIL,219740,Treasury Management and Bank Charges,Lloyds BACS Services,10/06/20,LLOYDS BANK,537.17,Jul-20
EREWASH BOROUGH COUNCIL,220097,Treasury Management and Bank Charges,Lloyds BACS Services,10/07/20,LLOYDS BANK,542.82,Jul-20
EREWASH BOROUGH COUNCIL,220097,Treasury Management and Bank Charges,Lloyds Bank Charges for Debits and Credits,10/07/20,LLOYDS BANK,168.60,Jul-20
EREWASH BOROUGH COUNCIL,219740,Treasury Management and Bank Charges,Lloyds Bank Charges for Debits and Credits,10/06/20,LLOYDS BANK,163.00,Jul-20
EREWASH BOROUGH COUNCIL,219391,Homelessness,Computer Software,31/03/20,LOCATA (HOUSING SERVICES) LTD,"3,750.00",Jul-20
EREWASH BOROUGH COUNCIL,219498,Transport Trading Account,Tyres,30/06/20,LODGE TYRE COMPANY LTD,15.00,Jul-20
EREWASH BOROUGH COUNCIL,219498,Street Scene,Tyres,30/06/20,LODGE TYRE COMPANY LTD,180.00,Jul-20
EREWASH BOROUGH COUNCIL,219498,Kerbside Dry Recycling Collection,Tyres,30/06/20,LODGE TYRE COMPANY LTD,530.00,Jul-20
EREWASH BOROUGH COUNCIL,219498,Neighbourhood Wardens,Tyres,30/06/20,LODGE TYRE COMPANY LTD,48.00,Jul-20
EREWASH BOROUGH COUNCIL,219498,Green Space,Tyres,30/06/20,LODGE TYRE COMPANY LTD,730.00,Jul-20
EREWASH BOROUGH COUNCIL,219498,Household/Residual Waste Collection,Tyres,30/06/20,LODGE TYRE COMPANY LTD,"1,789.35",Jul-20
EREWASH BOROUGH COUNCIL,219498,Trade Waste,Tyres,30/06/20,LODGE TYRE COMPANY LTD,70.00,Jul-20
EREWASH BOROUGH COUNCIL,219899,General Entertainment,Lettings Misc,21/07/20,LONG EATON CARNIVAL,262.00,Jul-20
EREWASH BOROUGH COUNCIL,219704,Balance Sheet,COVID19 Discretionary Business Grants,14/07/20,LONG EATON GLASS,"10,000.00",Jul-20
EREWASH BOROUGH COUNCIL,219722,Balance Sheet,Council Tax Collection Fund Control Account,10/07/20,REDACTED PERSONAL DATA,314.06,Jul-20
EREWASH BOROUGH COUNCIL,219998,Balance Sheet,ICT Works,19/07/20,MACILDOWIE RECRUITMENT EXPERTISE,"1,152.18",Jul-20
EREWASH BOROUGH COUNCIL,219613,Balance Sheet,ICT Works,05/07/20,MACILDOWIE RECRUITMENT EXPERTISE,"1,152.18",Jul-20
EREWASH BOROUGH COUNCIL,219746,Balance Sheet,ICT Works,12/07/20,MACILDOWIE RECRUITMENT EXPERTISE,"1,152.18",Jul-20
EREWASH BOROUGH COUNCIL,219347,Green Space,Contracted Services,15/06/20,MAP BUILDING & CIVIL ENGINEERING LTD,"3,065.00",Jul-20
EREWASH BOROUGH COUNCIL,219628,Balance Sheet,COVID19 Discretionary Business Grants,09/07/20,MARWOOD LEATHER LTD,"2,000.00",Jul-20
EREWASH BOROUGH COUNCIL,219248,Property and Estates,PPM Mechanical and Equipment,22/06/20,MDB PLUMBING (NOTTM) LTD,"1,362.24",Jul-20
EREWASH BOROUGH COUNCIL,219059,Property and Estates,Reactive Maintenance,05/06/20,MDB PLUMBING (NOTTM) LTD,269.65,Jul-20
EREWASH BOROUGH COUNCIL,219036,Occupational Health and Welfare,Occupational Health Service,03/06/20,MEDIGOLD HEALTH CONSULTANCY LIMITED,369.50,Jul-20
EREWASH BOROUGH COUNCIL,220094,Occupational Health and Welfare,Occupational Health Service,04/03/20,MEDIGOLD HEALTH CONSULTANCY LIMITED,"1,598.00",Jul-20
EREWASH BOROUGH COUNCIL,219755,Occupational Health and Welfare,Occupational Health Service,06/07/20,MEDIGOLD HEALTH CONSULTANCY LIMITED,613.00,Jul-20
EREWASH BOROUGH COUNCIL,219798,Balance Sheet,COVID19 Discretionary Business Grants,15/07/20,MEDUSA SOJOURN T/AS DUCKLINGS PRIVATE NURSERY,"1,500.00",Jul-20
EREWASH BOROUGH COUNCIL,219454,Balance Sheet,COVID19 Discretionary Business Grants,02/07/20,MEDUSA SOJOURN T/AS DUCKLINGS PRIVATE NURSERY,"6,000.00",Jul-20
EREWASH BOROUGH COUNCIL,219705,Balance Sheet,COVID19 Discretionary Business Grants,14/07/20,MERCIA IMAGE LIMITED,"10,000.00",Jul-20
EREWASH BOROUGH COUNCIL,219570,Kerbside Dry Recycling Collection,Bins,01/06/20,MGB PLASTICS LTD,780.00,Jul-20
EREWASH BOROUGH COUNCIL,219936,Household/Residual Waste Collection,Bins,18/06/20,MGB PLASTICS LTD,316.00,Jul-20
EREWASH BOROUGH COUNCIL,219936,Kerbside Dry Recycling Collection,Bins,18/06/20,MGB PLASTICS LTD,"6,320.00",Jul-20
EREWASH BOROUGH COUNCIL,219702,Balance Sheet,COVID19 Discretionary Business Grants,14/07/20,MOMMAS SOUL FOOD KITCHEN,"3,000.00",Jul-20
EREWASH BOROUGH COUNCIL,219728,Parish Precepts,Morley - Precept,06/07/20,MORLEY PARISH COUNCIL,"1,150.00",Jul-20
EREWASH BOROUGH COUNCIL,219728,Parish Council Concurrent Functions,Morley - Precept,06/07/20,MORLEY PARISH COUNCIL,340.00,Jul-20
EREWASH BOROUGH COUNCIL,220042,Homelessness,Temporary Accommodation,20/06/20,MR K. SINGH,390.00,Jul-20
EREWASH BOROUGH COUNCIL,220047,Homelessness,Temporary Accommodation,29/06/20,MR K. SINGH,420.00,Jul-20
EREWASH BOROUGH COUNCIL,220044,Homelessness,Temporary Accommodation,01/07/20,MR K. SINGH,360.00,Jul-20
EREWASH BOROUGH COUNCIL,219781,Balance Sheet,COVID19 Discretionary Business Grants,15/07/20,MS FINANCIAL SOLUTIONS LTD,"2,000.00",Jul-20
EREWASH BOROUGH COUNCIL,219528,Economic Development,Project Grants,25/06/20,N B CONSTRUCTION,"5,536.29",Jul-20
EREWASH BOROUGH COUNCIL,219140,Green Space,Contracted Services,10/06/20,N B CONSTRUCTION,"3,285.00",Jul-20
EREWASH BOROUGH COUNCIL,219141,Pedestrian Zones - Ilkeston and Long Eaton,Reactive Maintenance,11/06/20,N B CONSTRUCTION,350.00,Jul-20
EREWASH BOROUGH COUNCIL,219713,Balance Sheet,ICT Software Licence Payment in Advance,26/06/20,NCC SERVICES LTD,645.00,Jul-20
EREWASH BOROUGH COUNCIL,219778,Balance Sheet,COVID19 Discretionary Business Grants,15/07/20,NEXUS EXHIBITIONS LTD,"2,000.00",Jul-20
EREWASH BOROUGH COUNCIL,219472,Street Scene,Street Furniture,06/07/20,NIBRA SIGNS LTD,"3,834.58",Jul-20
EREWASH BOROUGH COUNCIL,219365,Play Areas,Materials/Consumables,23/06/20,NIBRA SIGNS LTD,329.65,Jul-20
EREWASH BOROUGH COUNCIL,219775,Balance Sheet,COVID19 Discretionary Business Grants,15/07/20,NIGEL ROBINSON LTD,"2,000.00",Jul-20
EREWASH BOROUGH COUNCIL,219703,Balance Sheet,COVID19 Discretionary Business Grants,14/07/20,NO58,"5,000.00",Jul-20
EREWASH BOROUGH COUNCIL,219864,Green Space,Materials/Consumables,01/07/20,NOMIX ENVIRO LIMITED,324.20,Jul-20
EREWASH BOROUGH COUNCIL,219865,Green Space,Materials/Consumables,16/06/20,NOMIX ENVIRO LIMITED,271.60,Jul-20
EREWASH BOROUGH COUNCIL,219534,Chief Executives Office,Subscription - East Midlands RLGA,26/06/20,NOTTINGHAM CITY COUNCIL..,"5,145.00",Jul-20
EREWASH BOROUGH COUNCIL,219667,Development Control - Fee Earning,Courses and Seminars,25/06/20,NOTTINGHAM CITY COUNCIL..,287.50,Jul-20
EREWASH BOROUGH COUNCIL,219667,Planning Policy,Courses and Seminars,25/06/20,NOTTINGHAM CITY COUNCIL..,287.50,Jul-20
EREWASH BOROUGH COUNCIL,220057,Homelessness,Temporary Accommodation,10/07/20,NOVOTEL NOTTINGHAM,"1,080.00",Jul-20
EREWASH BOROUGH COUNCIL,220058,Homelessness,Temporary Accommodation,10/07/20,NOVOTEL NOTTINGHAM,445.00,Jul-20
EREWASH BOROUGH COUNCIL,219540,ICT Support Services,Mobile Phones,28/06/20,O2 UK LTD,"1,666.37",Jul-20
EREWASH BOROUGH COUNCIL,219981,ICT Support Services,Mobile Phones,28/07/20,O2 UK LTD,"1,541.08",Jul-20
EREWASH BOROUGH COUNCIL,219729,Parish Precepts,Ockbrook - Precept,06/07/20,OCKBROOK AND BORROWASH PARISH COUNCIL,"21,932.00",Jul-20
EREWASH BOROUGH COUNCIL,219729,Parish Council Concurrent Functions,Ockbrook - Precept,06/07/20,OCKBROOK AND BORROWASH PARISH COUNCIL,"5,933.00",Jul-20
EREWASH BOROUGH COUNCIL,219711,Balance Sheet,COVID19 Discretionary Business Grants,14/07/20,ONESTOPCARSHOPUK LIMITED,"3,000.00",Jul-20
EREWASH BOROUGH COUNCIL,219417,Balance Sheet,Accountancy Software Licence Payments in Advance,27/06/20,ORACLE CORPORATION UK LTD,"3,365.05",Jul-20
EREWASH BOROUGH COUNCIL,219452,Balance Sheet,COVID19 Discretionary Business Grants,02/07/20,OVENFRESH,"3,000.00",Jul-20
EREWASH BOROUGH COUNCIL,219468,Balance Sheet,COVID19 Discretionary Business Grants,06/07/20,P&R (SHOPFITTING) LTD,"10,000.00",Jul-20
EREWASH BOROUGH COUNCIL,219902,Car Parking,Contracted Services,26/05/20,PAPERWORK UK LTD,"1,012.50",Jul-20
EREWASH BOROUGH COUNCIL,219214,Leisure Contract,Contracted Services,17/06/20,PARKWOOD LEISURE LTD,"26,733.42",Jul-20
EREWASH BOROUGH COUNCIL,219867,Leisure Contract,Contracted Services,15/07/20,PARKWOOD LEISURE LTD,"65,301.00",Jul-20
EREWASH BOROUGH COUNCIL,219853,Leisure Contract,Contracted Services,16/07/20,PARKWOOD LEISURE LTD,"26,733.42",Jul-20
EREWASH BOROUGH COUNCIL,218977,Property and Estates,PPM Mechanical and Equipment,03/06/20,PEEL ELECTRICAL LTD,536.62,Jul-20
EREWASH BOROUGH COUNCIL,218976,Property and Estates,PPM Mechanical and Equipment,03/06/20,PEEL ELECTRICAL LTD,812.82,Jul-20
EREWASH BOROUGH COUNCIL,219554,Property and Estates,Repairs and Maintenance,03/07/20,PEEL ELECTRICAL LTD,219.28,Jul-20
EREWASH BOROUGH COUNCIL,219071,Green Space,Contracted Services,08/06/20,PEEL ELECTRICAL LTD,"1,947.07",Jul-20
EREWASH BOROUGH COUNCIL,219223,Green Space,Materials/Consumables,15/06/20,PEEL ELECTRICAL LTD,303.20,Jul-20
EREWASH BOROUGH COUNCIL,219997,Council Tax Collection,Fees Costs and Expenses,22/07/20,PENHAM EXCEL LIMITED,0.00,Jul-20
EREWASH BOROUGH COUNCIL,219965,Green Space,Contracted Services,06/07/20,PENHAM EXCEL LIMITED,300.00,Jul-20
EREWASH BOROUGH COUNCIL,219318,Environmental Protection Act,Work In Default,18/06/20,PERFECTLY HOUSE PROUD,"3,855.00",Jul-20
EREWASH BOROUGH COUNCIL,219259,Green Space,Repairs and Maintenance,16/06/20,PERRYS,240.80,Jul-20
EREWASH BOROUGH COUNCIL,219647,Green Space,Repairs and Maintenance,24/06/20,PERRYS,226.88,Jul-20
EREWASH BOROUGH COUNCIL,219225,Transport Trading Account,Repairs and Maintenance,05/06/20,PERRYS,312.21,Jul-20
EREWASH BOROUGH COUNCIL,219258,Neighbourhood Wardens,Repairs and Maintenance,18/06/20,PERRYS,305.05,Jul-20
EREWASH BOROUGH COUNCIL,219101,Food Inspection and Hygiene,Materials/Consumables,11/06/20,PET INDUSTRY FEDERATION,595.00,Jul-20
EREWASH BOROUGH COUNCIL,219101,Training - Personnel Costs Only,Qualification Training,11/06/20,PET INDUSTRY FEDERATION,595.00,Jul-20
EREWASH BOROUGH COUNCIL,219882,ICT Support Services,Network Equipment & Cabling,20/07/20,PHOENIX NETWORK COMMUNICATIONS LTD,220.00,Jul-20
EREWASH BOROUGH COUNCIL,219873,Development Control - Fee Earning,Planning Fees,21/07/20,PORTALPLANQUEST LTD,924.00,Jul-20
EREWASH BOROUGH COUNCIL,219716,Green Space,Road Taxes,14/07/20,POST OFFICE LTD,265.00,Jul-20
EREWASH BOROUGH COUNCIL,219716,Household/Residual Waste Collection,Road Taxes,14/07/20,POST OFFICE LTD,530.00,Jul-20
EREWASH BOROUGH COUNCIL,219716,Street Scene,Road Taxes,14/07/20,POST OFFICE LTD,530.00,Jul-20
EREWASH BOROUGH COUNCIL,219605,Balance Sheet,COVID19 Discretionary Business Grants,08/07/20,PREMIER FURNISHINGS LTD.,"25,000.00",Jul-20
EREWASH BOROUGH COUNCIL,219535,Procurement Services,Software Licences,26/06/20,PROACTIS LIMITED,"1,978.00",Jul-20
EREWASH BOROUGH COUNCIL,219307,Street Scene,Vehicle Sweeper Brushes,17/06/20,PROBRUSH,516.50,Jul-20
EREWASH BOROUGH COUNCIL,219463,Balance Sheet,COVID19 Discretionary Business Grants,06/07/20,PROJECT DELIVERY CONSULTING SERVICES LTD,"2,000.00",Jul-20
EREWASH BOROUGH COUNCIL,219591,Household/Residual Waste Collection,Protective Clothing,23/06/20,PROTECTIVE WEAR SUPPLIES LTD,139.89,Jul-20
EREWASH BOROUGH COUNCIL,219962,Kerbside Dry Recycling Collection,Protective Clothing,01/04/20,PROTECTIVE WEAR SUPPLIES LTD,297.00,Jul-20
EREWASH BOROUGH COUNCIL,219962,Household/Residual Waste Collection,Protective Clothing,01/04/20,PROTECTIVE WEAR SUPPLIES LTD,297.00,Jul-20
EREWASH BOROUGH COUNCIL,219591,Kerbside Dry Recycling Collection,Protective Clothing,23/06/20,PROTECTIVE WEAR SUPPLIES LTD,139.89,Jul-20
EREWASH BOROUGH COUNCIL,219315,Operational Non Leisure Departmental,Maintenance of Equipment,05/06/20,PROTECTIVE WEAR SUPPLIES LTD,235.00,Jul-20
EREWASH BOROUGH COUNCIL,219603,Economic Development,Contracted Services,01/07/20,PROXIMITY FUTURES T/A ELEPHANT WIFI,303.33,Jul-20
EREWASH BOROUGH COUNCIL,219893,Balance Sheet,Payroll Collection A/c - AVCS,22/07/20,PRUDENTIAL,"5,262.50",Jul-20
EREWASH BOROUGH COUNCIL,219857,Performance Management,Consultants Fees,30/06/20,Q2 LIMITED,385.00,Jul-20
EREWASH BOROUGH COUNCIL,219759,Performance Management,Consultants Fees,30/06/20,Q2 LIMITED,"2,310.00",Jul-20
EREWASH BOROUGH COUNCIL,219289,CCTV - Ilkeston and Long Eaton,Maintenance of Equipment,17/06/20,QUADRANT SECURITY GROUP,896.00,Jul-20
EREWASH BOROUGH COUNCIL,220081,CCTV - Ilkeston and Long Eaton,Contracted Services,02/07/20,QUADRANT SECURITY GROUP,"7,920.50",Jul-20
EREWASH BOROUGH COUNCIL,219763,Balance Sheet,COVID19 Discretionary Business Grants,15/07/20,QUALIFLEX LIMITED,"10,000.00",Jul-20
EREWASH BOROUGH COUNCIL,219585,Household/Residual Waste Collection,Agency Staff,11/06/20,QUALITY SERVICE RECRUITMENT LTD,666.22,Jul-20
EREWASH BOROUGH COUNCIL,219584,Household/Residual Waste Collection,Agency Staff,04/06/20,QUALITY SERVICE RECRUITMENT LTD,801.27,Jul-20
EREWASH BOROUGH COUNCIL,219578,Household/Residual Waste Collection,Agency Staff,30/06/20,QUALITY SERVICE RECRUITMENT LTD,666.22,Jul-20
EREWASH BOROUGH COUNCIL,219579,Household/Residual Waste Collection,Agency Staff,25/06/20,QUALITY SERVICE RECRUITMENT LTD,666.22,Jul-20
EREWASH BOROUGH COUNCIL,219575,Kerbside Dry Recycling Collection,Agency Staff,18/06/20,QUALITY SERVICE RECRUITMENT LTD,444.15,Jul-20
EREWASH BOROUGH COUNCIL,219584,Kerbside Dry Recycling Collection,Agency Staff,04/06/20,QUALITY SERVICE RECRUITMENT LTD,534.18,Jul-20
EREWASH BOROUGH COUNCIL,219585,Kerbside Dry Recycling Collection,Agency Staff,11/06/20,QUALITY SERVICE RECRUITMENT LTD,444.15,Jul-20
EREWASH BOROUGH COUNCIL,219578,Kerbside Dry Recycling Collection,Agency Staff,30/06/20,QUALITY SERVICE RECRUITMENT LTD,444.15,Jul-20
EREWASH BOROUGH COUNCIL,219579,Kerbside Dry Recycling Collection,Agency Staff,25/06/20,QUALITY SERVICE RECRUITMENT LTD,444.15,Jul-20
EREWASH BOROUGH COUNCIL,219575,Household/Residual Waste Collection,Agency Staff,18/06/20,QUALITY SERVICE RECRUITMENT LTD,666.22,Jul-20
EREWASH BOROUGH COUNCIL,219678,Transport Trading Account,Agency Staff,06/07/20,QUESTECH RECRUITMENT LTD,906.50,Jul-20
EREWASH BOROUGH COUNCIL,219360,Transport Trading Account,Agency Staff,22/06/20,QUESTECH RECRUITMENT LTD,906.50,Jul-20
EREWASH BOROUGH COUNCIL,219338,Transport Trading Account,Agency Staff,29/06/20,QUESTECH RECRUITMENT LTD,906.50,Jul-20
EREWASH BOROUGH COUNCIL,219707,Balance Sheet,COVID19 Discretionary Business Grants,14/07/20,QUICK FIX KITCHENS,"2,000.00",Jul-20
EREWASH BOROUGH COUNCIL,219449,Balance Sheet,COVID19 Discretionary Business Grants,02/07/20,R4 CIVILS LTD,"3,000.00",Jul-20
EREWASH BOROUGH COUNCIL,219785,Balance Sheet,COVID19 Discretionary Business Grants,15/07/20,R4 CIVILS LTD,"2,000.00",Jul-20
EREWASH BOROUGH COUNCIL,219779,Balance Sheet,COVID19 Discretionary Business Grants,15/07/20,RALPH EDWARD FURNITURE LTD,"2,000.00",Jul-20
EREWASH BOROUGH COUNCIL,219604,Building Control - Fee Earning,Contracted Services,01/07/20,RANSOMWOOD ESTATES UK LIMITED,531.67,Jul-20
EREWASH BOROUGH COUNCIL,219626,Balance Sheet,COVID19 Discretionary Business Grants,09/07/20,RATMALLY LTD,"2,000.00",Jul-20
EREWASH BOROUGH COUNCIL,219802,Balance Sheet,COVID19 Discretionary Business Grants,15/07/20,RATMALLY LTD,"1,000.00",Jul-20
EREWASH BOROUGH COUNCIL,219485,Green Space,Materials/Consumables,10/06/20,RIGBY TAYLOR LTD,449.15,Jul-20
EREWASH BOROUGH COUNCIL,219710,Balance Sheet,COVID19 Discretionary Business Grants,14/07/20,RILEY TREE SERVICES,"2,000.00",Jul-20
EREWASH BOROUGH COUNCIL,219730,Parish Council Concurrent Functions,Risley - Precept,06/07/20,RISLEY WITH HOPWELL PARISH COUNCIL,"1,837.00",Jul-20
EREWASH BOROUGH COUNCIL,219730,Parish Precepts,Risley - Precept,06/07/20,RISLEY WITH HOPWELL PARISH COUNCIL,"2,378.00",Jul-20
EREWASH BOROUGH COUNCIL,219439,Balance Sheet,COVID19 Discretionary Business Grants,02/07/20,ROBSTOCK LTD,"10,000.00",Jul-20
EREWASH BOROUGH COUNCIL,219634,Revenues and Benefits,Postages,07/07/20,ROYAL MAIL GROUP LTD.,333.00,Jul-20
EREWASH BOROUGH COUNCIL,220007,Revenues and Benefits,Postages,22/07/20,ROYAL MAIL GROUP LTD.,"1,331.50",Jul-20
EREWASH BOROUGH COUNCIL,219502,Revenues and Benefits,Postages,01/07/20,ROYAL MAIL GROUP LTD.,"1,482.41",Jul-20
EREWASH BOROUGH COUNCIL,219966,Household/Residual Waste Collection,Protective Clothing,22/06/20,SAFETY SIGNS & NOTICES,23.49,Jul-20
EREWASH BOROUGH COUNCIL,219966,Car Parking,General Equipment,22/06/20,SAFETY SIGNS & NOTICES,585.00,Jul-20
EREWASH BOROUGH COUNCIL,219316,Pedestrian Zones - Ilkeston and Long Eaton,Reactive Maintenance,11/06/20,SAFETY SIGNS & NOTICES,"1,480.00",Jul-20
EREWASH BOROUGH COUNCIL,219772,Balance Sheet,COVID19 Discretionary Business Grants,15/07/20,SALISBURY STREET GUESTHOUSE,"2,000.00",Jul-20
EREWASH BOROUGH COUNCIL,219610,Balance Sheet,COVID19 Discretionary Business Grants,08/07/20,SAM@HEADROOM,"3,000.00",Jul-20
EREWASH BOROUGH COUNCIL,219731,Parish Council Concurrent Functions,Sandiacre - Precept,06/07/20,SANDIACRE PARISH COUNCIL,"6,680.00",Jul-20
EREWASH BOROUGH COUNCIL,219731,Parish Precepts,Sandiacre - Precept,06/07/20,SANDIACRE PARISH COUNCIL,"12,501.00",Jul-20
EREWASH BOROUGH COUNCIL,219732,Parish Precepts,Sawley - Precept,06/07/20,SAWLEY PARISH COUNCIL,"11,800.00",Jul-20
EREWASH BOROUGH COUNCIL,219732,Parish Council Concurrent Functions,Sawley - Precept,06/07/20,SAWLEY PARISH COUNCIL,530.00,Jul-20
EREWASH BOROUGH COUNCIL,219571,Merlin Way Depot - Ilkeston,Metered Water,01/07/20,SCOTTISH WATER BUSINESS STREAM LIMITED,865.01,Jul-20
EREWASH BOROUGH COUNCIL,219571,Shopmobility - Ilkeston,Metered Water,01/07/20,SCOTTISH WATER BUSINESS STREAM LIMITED,35.11,Jul-20
EREWASH BOROUGH COUNCIL,219571,Shopmobility - Long Eaton,Metered Water,01/07/20,SCOTTISH WATER BUSINESS STREAM LIMITED,12.33,Jul-20
EREWASH BOROUGH COUNCIL,219571,Civic Accommodation - Long Eaton,Metered Water,01/07/20,SCOTTISH WATER BUSINESS STREAM LIMITED,130.72,Jul-20
EREWASH BOROUGH COUNCIL,219571,Public Conveniences,Metered Water,01/07/20,SCOTTISH WATER BUSINESS STREAM LIMITED,-414.24,Jul-20
EREWASH BOROUGH COUNCIL,219571,Cemeteries,Metered Water,01/07/20,SCOTTISH WATER BUSINESS STREAM LIMITED,80.89,Jul-20
EREWASH BOROUGH COUNCIL,219571,Green Space,Metered Water,01/07/20,SCOTTISH WATER BUSINESS STREAM LIMITED,646.33,Jul-20
EREWASH BOROUGH COUNCIL,219571,Long Eaton Market,Metered Water,01/07/20,SCOTTISH WATER BUSINESS STREAM LIMITED,165.98,Jul-20
EREWASH BOROUGH COUNCIL,219571,Allotments,Metered Water,01/07/20,SCOTTISH WATER BUSINESS STREAM LIMITED,138.16,Jul-20
EREWASH BOROUGH COUNCIL,219571,Car Parking,Unmetered Water,01/07/20,SCOTTISH WATER BUSINESS STREAM LIMITED,2.71,Jul-20
EREWASH BOROUGH COUNCIL,219571,Cotmanhay Pavilion,Unmetered Water,01/07/20,SCOTTISH WATER BUSINESS STREAM LIMITED,27.66,Jul-20
EREWASH BOROUGH COUNCIL,219571,Civic Accommodation - Ilkeston,Metered Water,01/07/20,SCOTTISH WATER BUSINESS STREAM LIMITED,408.31,Jul-20
EREWASH BOROUGH COUNCIL,219571,Abbotsford Community Centre,Unmetered Water,01/07/20,SCOTTISH WATER BUSINESS STREAM LIMITED,110.19,Jul-20
EREWASH BOROUGH COUNCIL,219571,Sandiacre Friesland Sports Centre,Metered Water,01/07/20,SCOTTISH WATER BUSINESS STREAM LIMITED,208.36,Jul-20
EREWASH BOROUGH COUNCIL,219571,Rutland Sports Park,Metered Water,01/07/20,SCOTTISH WATER BUSINESS STREAM LIMITED,9.11,Jul-20
EREWASH BOROUGH COUNCIL,219545,Erewash Museum,Special Events,02/07/20,SDI DISPLAYS LIMITED,820.21,Jul-20
EREWASH BOROUGH COUNCIL,219018,Street Scene,Maintenance of Bus Shelters,08/06/20,SHELTER MAINTENANCE CO,"3,902.40",Jul-20
EREWASH BOROUGH COUNCIL,219866,Green Space,Materials/Consumables,30/06/20,SLINTER MINING COMPANY,312.55,Jul-20
EREWASH BOROUGH COUNCIL,219467,Balance Sheet,COVID19 Discretionary Business Grants,06/07/20,SMITH-GUARINO TRADING LTD,"3,000.00",Jul-20
EREWASH BOROUGH COUNCIL,219668,Democratic Representation,Communications costs,18/06/20,SNOW ELK PRODUCTIONS,400.00,Jul-20
EREWASH BOROUGH COUNCIL,219733,Parish Precepts,Stanley - Precept,06/07/20,STANLEY & STANLEY COMMON PARISH COUNCIL,"4,408.00",Jul-20
EREWASH BOROUGH COUNCIL,219733,Parish Council Concurrent Functions,Stanley - Precept,06/07/20,STANLEY & STANLEY COMMON PARISH COUNCIL,"2,065.00",Jul-20
EREWASH BOROUGH COUNCIL,219734,Parish Council Concurrent Functions,Stanton by Dale - Precept,06/07/20,STANTON-BY-DALE PARISH COUNCIL,"1,133.00",Jul-20
EREWASH BOROUGH COUNCIL,219734,Parish Precepts,Stanton by Dale - Precept,06/07/20,STANTON-BY-DALE PARISH COUNCIL,"1,491.00",Jul-20
EREWASH BOROUGH COUNCIL,219611,Balance Sheet,COVID19 Discretionary Business Grants,08/07/20,"STAY, PLAY & PAMPER","3,000.00",Jul-20
EREWASH BOROUGH COUNCIL,219686,Erewash Museum,Exhibitions,03/07/20,STEELCRAFT FABRICATIONS,450.00,Jul-20
EREWASH BOROUGH COUNCIL,219695,Corporate Health and Safety,Water Testing (Legionella),30/06/20,STERILIZING SERVICES LTD,530.60,Jul-20
EREWASH BOROUGH COUNCIL,219466,Balance Sheet,COVID19 Discretionary Business Grants,06/07/20,STUART FABRICATIONS LTD,"3,000.00",Jul-20
EREWASH BOROUGH COUNCIL,219445,Balance Sheet,COVID19 Discretionary Business Grants,02/07/20,STUARTS HAIR & BEAUTY,"3,000.00",Jul-20
EREWASH BOROUGH COUNCIL,219447,Balance Sheet,COVID19 Discretionary Business Grants,02/07/20,STUARTS HAIR & BEAUTY.,"3,000.00",Jul-20
EREWASH BOROUGH COUNCIL,219773,Balance Sheet,COVID19 Discretionary Business Grants,15/07/20,STYLISH HOMES (NOTTS) LTD,"7,500.00",Jul-20
EREWASH BOROUGH COUNCIL,219021,Green Space,Contracted Services,07/06/20,T H HEATH  CONTRACTS  LTD,"2,653.32",Jul-20
EREWASH BOROUGH COUNCIL,219424,Green Space,Contracted Services,30/06/20,T H HEATH  CONTRACTS  LTD,"5,707.59",Jul-20
EREWASH BOROUGH COUNCIL,219179,Green Space,Contracted Services,16/06/20,T H HEATH  CONTRACTS  LTD,"2,018.00",Jul-20
EREWASH BOROUGH COUNCIL,219423,Green Space,Contracted Services,30/06/20,T H HEATH  CONTRACTS  LTD,"5,266.64",Jul-20
EREWASH BOROUGH COUNCIL,219658,Green Space,Contracted Services,07/07/20,T H HEATH  CONTRACTS  LTD,236.00,Jul-20
EREWASH BOROUGH COUNCIL,219213,Property and Estates,Alarms Planned Maintenence,16/06/20,TECSERV UK,937.67,Jul-20
EREWASH BOROUGH COUNCIL,219671,Property and Estates,Alarms Planned Maintenence,07/07/20,TECSERV UK,937.67,Jul-20
EREWASH BOROUGH COUNCIL,219436,ICT Support Services,Telephones,01/07/20,TELEPHONE TECHNOLOGY LTD,210.00,Jul-20
EREWASH BOROUGH COUNCIL,219708,Balance Sheet,COVID19 Discretionary Business Grants,14/07/20,TENNIS X LTD,"3,000.00",Jul-20
EREWASH BOROUGH COUNCIL,218909,Kerbside Dry Recycling Collection,Repairs and Maintenance,04/06/20,TERBERG MATEC UK,466.29,Jul-20
EREWASH BOROUGH COUNCIL,219473,Household/Residual Waste Collection,Repairs and Maintenance,30/06/20,TERBERG MATEC UK,796.47,Jul-20
EREWASH BOROUGH COUNCIL,219352,Household/Residual Waste Collection,Repairs and Maintenance,23/06/20,TERBERG MATEC UK,608.00,Jul-20
EREWASH BOROUGH COUNCIL,218909,Household/Residual Waste Collection,Repairs and Maintenance,04/06/20,TERBERG MATEC UK,333.24,Jul-20
EREWASH BOROUGH COUNCIL,219991,Household/Residual Waste Collection,Repairs and Maintenance,25/06/20,TERBERG MATEC UK,323.66,Jul-20
EREWASH BOROUGH COUNCIL,218936,Household/Residual Waste Collection,Repairs and Maintenance,03/06/20,TERBERG MATEC UK,459.85,Jul-20
EREWASH BOROUGH COUNCIL,219500,Household/Residual Waste Collection,Repairs and Maintenance,01/07/20,TERBERG MATEC UK,238.72,Jul-20
EREWASH BOROUGH COUNCIL,219505,Household/Residual Waste Collection,Repairs and Maintenance,29/06/20,TERBERG MATEC UK,413.23,Jul-20
EREWASH BOROUGH COUNCIL,219488,Household/Residual Waste Collection,Repairs and Maintenance,02/07/20,TERBERG MATEC UK,"1,384.60",Jul-20
EREWASH BOROUGH COUNCIL,219446,Balance Sheet,COVID19 Discretionary Business Grants,02/07/20,THE BEAUTY RETREAT,"3,000.00",Jul-20
EREWASH BOROUGH COUNCIL,219345,Homelessness,Homelessness-Lease Properties,11/03/20,THE CARPET STOP,"1,257.00",Jul-20
EREWASH BOROUGH COUNCIL,220038,Homelessness,Temporary Accommodation,22/06/20,THE CLARENCE HOTEL,350.00,Jul-20
EREWASH BOROUGH COUNCIL,219407,Homelessness,Temporary Accommodation,08/06/20,THE CLARENCE HOTEL,350.00,Jul-20
EREWASH BOROUGH COUNCIL,220027,Homelessness,Temporary Accommodation,22/06/20,THE CLARENCE HOTEL,420.00,Jul-20
EREWASH BOROUGH COUNCIL,220035,Homelessness,Temporary Accommodation,13/07/20,THE CLARENCE HOTEL,350.00,Jul-20
EREWASH BOROUGH COUNCIL,220054,Homelessness,Temporary Accommodation,13/07/20,THE CLARENCE HOTEL,350.00,Jul-20
EREWASH BOROUGH COUNCIL,219402,Homelessness,Temporary Accommodation,08/06/20,THE CLARENCE HOTEL,350.00,Jul-20
EREWASH BOROUGH COUNCIL,220034,Homelessness,Temporary Accommodation,29/06/20,THE CLARENCE HOTEL,350.00,Jul-20
EREWASH BOROUGH COUNCIL,220037,Homelessness,Temporary Accommodation,15/06/20,THE CLARENCE HOTEL,350.00,Jul-20
EREWASH BOROUGH COUNCIL,220040,Homelessness,Temporary Accommodation,22/06/20,THE CLARENCE HOTEL,300.00,Jul-20
EREWASH BOROUGH COUNCIL,219406,Homelessness,Temporary Accommodation,15/06/20,THE CLARENCE HOTEL,350.00,Jul-20
EREWASH BOROUGH COUNCIL,220039,Homelessness,Temporary Accommodation,29/06/20,THE CLARENCE HOTEL,350.00,Jul-20
EREWASH BOROUGH COUNCIL,219403,Homelessness,Temporary Accommodation,15/06/20,THE CLARENCE HOTEL,350.00,Jul-20
EREWASH BOROUGH COUNCIL,220036,Homelessness,Temporary Accommodation,08/06/20,THE CLARENCE HOTEL,350.00,Jul-20
EREWASH BOROUGH COUNCIL,219608,Balance Sheet,COVID19 Discretionary Business Grants,08/07/20,THE FILLING STATION,"3,000.00",Jul-20
EREWASH BOROUGH COUNCIL,220096,Green Space,Fuel,19/07/20,THE RIGHT FUELCARD COMPANY LTD,386.44,Jul-20
EREWASH BOROUGH COUNCIL,219914,Green Space,Fuel,28/06/20,THE RIGHT FUELCARD COMPANY LTD,369.50,Jul-20
EREWASH BOROUGH COUNCIL,219916,Green Space,Fuel,05/07/20,THE RIGHT FUELCARD COMPANY LTD,443.00,Jul-20
EREWASH BOROUGH COUNCIL,219915,Green Space,Fuel,12/07/20,THE RIGHT FUELCARD COMPANY LTD,357.48,Jul-20
EREWASH BOROUGH COUNCIL,219799,Balance Sheet,COVID19 Discretionary Business Grants,15/07/20,THE ROCKING HORSE NURSERIES LTD,"1,500.00",Jul-20
EREWASH BOROUGH COUNCIL,219464,Balance Sheet,COVID19 Discretionary Business Grants,06/07/20,THE ROCKING HORSE NURSERIES LTD,"6,000.00",Jul-20
EREWASH BOROUGH COUNCIL,219629,Balance Sheet,COVID19 Discretionary Business Grants,09/07/20,THE SAFETY MAINTENANCE COMPANY LTD,"10,000.00",Jul-20
EREWASH BOROUGH COUNCIL,219159,Civic Transport,Hire Charges,11/06/20,THOMAS FATTORINI LTD,408.68,Jul-20
EREWASH BOROUGH COUNCIL,219160,Civic Duties Hospitality,Other Expenses,11/06/20,THOMAS FATTORINI LTD,300.00,Jul-20
EREWASH BOROUGH COUNCIL,219159,Civic Duties Hospitality,Civic Events,11/06/20,THOMAS FATTORINI LTD,5.40,Jul-20
EREWASH BOROUGH COUNCIL,219160,Civic Duties Hospitality,Civic Events,11/06/20,THOMAS FATTORINI LTD,98.11,Jul-20
EREWASH BOROUGH COUNCIL,219587,Household/Residual Waste Collection,Agency Staff,17/06/20,THORN BAKER LIMITED,"1,000.78",Jul-20
EREWASH BOROUGH COUNCIL,219959,Household/Residual Waste Collection,Agency Staff,23/06/20,THORN BAKER LIMITED,"1,000.78",Jul-20
EREWASH BOROUGH COUNCIL,219960,Kerbside Dry Recycling Collection,Agency Staff,01/07/20,THORN BAKER LIMITED,548.80,Jul-20
EREWASH BOROUGH COUNCIL,219959,Kerbside Dry Recycling Collection,Agency Staff,23/06/20,THORN BAKER LIMITED,667.18,Jul-20
EREWASH BOROUGH COUNCIL,219960,Household/Residual Waste Collection,Agency Staff,01/07/20,THORN BAKER LIMITED,823.21,Jul-20
EREWASH BOROUGH COUNCIL,219586,Household/Residual Waste Collection,Agency Staff,09/06/20,THORN BAKER LIMITED,"1,000.78",Jul-20
EREWASH BOROUGH COUNCIL,219588,Household/Residual Waste Collection,Agency Staff,02/06/20,THORN BAKER LIMITED,"1,203.64",Jul-20
EREWASH BOROUGH COUNCIL,219587,Kerbside Dry Recycling Collection,Agency Staff,17/06/20,THORN BAKER LIMITED,667.18,Jul-20
EREWASH BOROUGH COUNCIL,219586,Kerbside Dry Recycling Collection,Agency Staff,09/06/20,THORN BAKER LIMITED,667.18,Jul-20
EREWASH BOROUGH COUNCIL,219588,Kerbside Dry Recycling Collection,Agency Staff,02/06/20,THORN BAKER LIMITED,802.42,Jul-20
EREWASH BOROUGH COUNCIL,219532,Property and Estates,Planned Preventative Maintenance,30/06/20,TIME ASSURED LIMITED,300.00,Jul-20
EREWASH BOROUGH COUNCIL,220092,Balance Sheet,Customer Debtor Refunds,29/07/20,TLT SOLICITORS,320.00,Jul-20
EREWASH BOROUGH COUNCIL,219247,Civic Accommodation - Ilkeston,Electricity,16/06/20,TOTAL GAS & POWER LTD,"1,051.05",Jul-20
EREWASH BOROUGH COUNCIL,219878,Ilkeston Market,Electricity,16/06/20,TOTAL GAS & POWER LTD,570.30,Jul-20
EREWASH BOROUGH COUNCIL,220010,Abbotsford Community Centre,Gas,11/06/20,TOTAL GAS & POWER LTD,94.05,Jul-20
EREWASH BOROUGH COUNCIL,219247,Merlin Way Depot - Ilkeston,Electricity,16/06/20,TOTAL GAS & POWER LTD,"1,198.73",Jul-20
EREWASH BOROUGH COUNCIL,219247,Green Space,Electricity,16/06/20,TOTAL GAS & POWER LTD,438.38,Jul-20
EREWASH BOROUGH COUNCIL,219247,Civic Accommodation - Long Eaton,Electricity,16/06/20,TOTAL GAS & POWER LTD,"1,436.85",Jul-20
EREWASH BOROUGH COUNCIL,219878,Bridge Arches - Long Eaton,Electricity,16/06/20,TOTAL GAS & POWER LTD,44.86,Jul-20
EREWASH BOROUGH COUNCIL,219247,Long Eaton Market,Electricity,16/06/20,TOTAL GAS & POWER LTD,94.13,Jul-20
EREWASH BOROUGH COUNCIL,219878,Belvoir Close Maintenance,Electricity,16/06/20,TOTAL GAS & POWER LTD,23.93,Jul-20
EREWASH BOROUGH COUNCIL,219878,Watercourse Maintenance,Electricity,16/06/20,TOTAL GAS & POWER LTD,28.04,Jul-20
EREWASH BOROUGH COUNCIL,219247,Sandiacre Friesland Sports Centre,Electricity,16/06/20,TOTAL GAS & POWER LTD,180.77,Jul-20
EREWASH BOROUGH COUNCIL,219878,Abbotsford Community Centre,Electricity,16/06/20,TOTAL GAS & POWER LTD,89.64,Jul-20
EREWASH BOROUGH COUNCIL,220010,Rutland Sports Park,Gas,11/06/20,TOTAL GAS & POWER LTD,179.96,Jul-20
EREWASH BOROUGH COUNCIL,219878,Erewash Museum,Electricity,16/06/20,TOTAL GAS & POWER LTD,233.20,Jul-20
EREWASH BOROUGH COUNCIL,219878,Civic Accommodation - Long Eaton,Electricity,16/06/20,TOTAL GAS & POWER LTD,23.53,Jul-20
EREWASH BOROUGH COUNCIL,219878,Public Conveniences,Electricity,16/06/20,TOTAL GAS & POWER LTD,540.37,Jul-20
EREWASH BOROUGH COUNCIL,220010,Green Space,Gas,11/06/20,TOTAL GAS & POWER LTD,449.42,Jul-20
EREWASH BOROUGH COUNCIL,219878,CCTV - Ilkeston and Long Eaton,Electricity,16/06/20,TOTAL GAS & POWER LTD,311.74,Jul-20
EREWASH BOROUGH COUNCIL,219878,Cemeteries,Electricity,16/06/20,TOTAL GAS & POWER LTD,160.50,Jul-20
EREWASH BOROUGH COUNCIL,219878,Cotmanhay Pavilion,Electricity,16/06/20,TOTAL GAS & POWER LTD,48.02,Jul-20
EREWASH BOROUGH COUNCIL,219878,Public Clocks,Electricity,16/06/20,TOTAL GAS & POWER LTD,17.70,Jul-20
EREWASH BOROUGH COUNCIL,219878,Pewit Golf Course,Electricity,16/06/20,TOTAL GAS & POWER LTD,22.01,Jul-20
EREWASH BOROUGH COUNCIL,220010,Civic Accommodation - Ilkeston,Gas,11/06/20,TOTAL GAS & POWER LTD,707.59,Jul-20
EREWASH BOROUGH COUNCIL,220010,Sandiacre Friesland Sports Centre,Gas,11/06/20,TOTAL GAS & POWER LTD,89.54,Jul-20
EREWASH BOROUGH COUNCIL,219878,Car Parking,Electricity,16/06/20,TOTAL GAS & POWER LTD,645.35,Jul-20
EREWASH BOROUGH COUNCIL,219878,Long Eaton Market,Electricity,16/06/20,TOTAL GAS & POWER LTD,36.82,Jul-20
EREWASH BOROUGH COUNCIL,220010,Civic Accommodation - Long Eaton,Gas,11/06/20,TOTAL GAS & POWER LTD,478.80,Jul-20
EREWASH BOROUGH COUNCIL,219878,Shopmobility - Long Eaton,Electricity,16/06/20,TOTAL GAS & POWER LTD,167.53,Jul-20
EREWASH BOROUGH COUNCIL,219878,Green Space,Electricity,16/06/20,TOTAL GAS & POWER LTD,"1,426.22",Jul-20
EREWASH BOROUGH COUNCIL,219878,Shopmobility - Ilkeston,Electricity,16/06/20,TOTAL GAS & POWER LTD,104.13,Jul-20
EREWASH BOROUGH COUNCIL,220010,Merlin Way Depot - Ilkeston,Gas,11/06/20,TOTAL GAS & POWER LTD,197.73,Jul-20
EREWASH BOROUGH COUNCIL,220010,Erewash Museum,Gas,11/06/20,TOTAL GAS & POWER LTD,162.98,Jul-20
EREWASH BOROUGH COUNCIL,219441,Balance Sheet,COVID19 Discretionary Business Grants,02/07/20,TOTAL PRECISION LIMITED,"10,000.00",Jul-20
EREWASH BOROUGH COUNCIL,219250,Balance Sheet,Counter Fraud Fund,22/06/20,TRANSUNION INTERNATIONAL UK LIMITED,"55,142.00",Jul-20
EREWASH BOROUGH COUNCIL,219366,Balance Sheet,Counter Fraud Fund,23/06/20,TRANSUNION INTERNATIONAL UK LIMITED,"182,800.00",Jul-20
EREWASH BOROUGH COUNCIL,219250,Revenues and Benefits,Software Licences,22/06/20,TRANSUNION INTERNATIONAL UK LIMITED,"13,520.00",Jul-20
EREWASH BOROUGH COUNCIL,219764,Balance Sheet,COVID19 Discretionary Business Grants,15/07/20,TRIMLACE LIMITED,"7,500.00",Jul-20
EREWASH BOROUGH COUNCIL,219409,Leisure Contract,Consultants Fees,20/06/20,TROWERS & HAMLINS LLP,"2,500.00",Jul-20
EREWASH BOROUGH COUNCIL,219306,Green Space,Materials/Consumables,24/06/20,TUDOR ENVIRONMENTAL,242.43,Jul-20
EREWASH BOROUGH COUNCIL,219317,Homelessness,Temporary Accommodation,08/06/20,TUDOR LODGE HOTEL,208.34,Jul-20
EREWASH BOROUGH COUNCIL,219952,ICT Support Services,Maintenance of Equipment,06/03/20,TWOFOLD LIMITED,"1,701.20",Jul-20
EREWASH BOROUGH COUNCIL,219453,Balance Sheet,COVID19 Discretionary Business Grants,02/07/20,UK ABRASIVES LTD,"3,000.00",Jul-20
EREWASH BOROUGH COUNCIL,219782,Balance Sheet,COVID19 Discretionary Business Grants,15/07/20,UK ABRASIVES LTD,"2,000.00",Jul-20
EREWASH BOROUGH COUNCIL,219894,Balance Sheet,Payroll Collection A/c - Trade Union Subscriptions,22/07/20,UNISON,485.40,Jul-20
EREWASH BOROUGH COUNCIL,219894,Payments,Commission,22/07/20,UNISON,-7.28,Jul-20
EREWASH BOROUGH COUNCIL,219947,Household/Residual Waste Collection,Repairs and Maintenance,21/07/20,VEHICLE WEIGHING SOLUTIONS,226.00,Jul-20
EREWASH BOROUGH COUNCIL,219465,Balance Sheet,COVID19 Discretionary Business Grants,06/07/20,VICKYS SWIMSCHOOL,"6,000.00",Jul-20
EREWASH BOROUGH COUNCIL,219792,Balance Sheet,COVID19 Discretionary Business Grants,15/07/20,VICKYS SWIMSCHOOL,"1,500.00",Jul-20
EREWASH BOROUGH COUNCIL,219408,Homelessness,Temporary Accommodation,10/06/20,VICTORIA PARK HOTEL,828.00,Jul-20
EREWASH BOROUGH COUNCIL,219393,Homelessness,Temporary Accommodation,21/06/20,VICTORIA PARK HOTEL,276.00,Jul-20
EREWASH BOROUGH COUNCIL,220041,Homelessness,Temporary Accommodation,15/06/20,VICTORIA PARK HOTEL,483.00,Jul-20
EREWASH BOROUGH COUNCIL,220033,Homelessness,Temporary Accommodation,18/05/20,VICTORIA PARK HOTEL,"2,898.00",Jul-20
EREWASH BOROUGH COUNCIL,220041,Homelessness,Temporary Accommodation,15/06/20,VICTORIA PARK HOTEL,483.00,Jul-20
EREWASH BOROUGH COUNCIL,219808,ICT Support Services,Data Lines,01/07/20,VODAFONE,"1,355.74",Jul-20
EREWASH BOROUGH COUNCIL,218922,Street Scene,Materials/Consumables,04/06/20,WASTECARE,363.77,Jul-20
EREWASH BOROUGH COUNCIL,219762,Balance Sheet,COVID19 Discretionary Business Grants,15/07/20,WAY AHEAD,"5,000.00",Jul-20
EREWASH BOROUGH COUNCIL,219735,Parish Precepts,West Hallam - Precept,06/07/20,WEST HALLAM PARISH COUNCIL,"9,944.00",Jul-20
EREWASH BOROUGH COUNCIL,219735,Parish Council Concurrent Functions,West Hallam - Precept,06/07/20,WEST HALLAM PARISH COUNCIL,"3,476.00",Jul-20
EREWASH BOROUGH COUNCIL,219560,Council Tax Collection,Fees Costs and Expenses,08/06/20,WILKIN CHAPMAN LLP,799.50,Jul-20
EREWASH BOROUGH COUNCIL,219549,Council Tax Collection,Fees Costs and Expenses,01/07/20,WILKIN CHAPMAN LLP,480.80,Jul-20
EREWASH BOROUGH COUNCIL,220095,Council Tax Collection,Fees Costs and Expenses,14/07/20,WILKIN CHAPMAN LLP,244.50,Jul-20
EREWASH BOROUGH COUNCIL,219934,Building Control - Fee Earning,Consultants Fees,21/07/20,WILLIAM MAY DEVELOPMENTS LTD,615.60,Jul-20
EREWASH BOROUGH COUNCIL,219956,Kerbside Dry Recycling Collection,Agency Staff,20/06/20,WORKCHAIN LTD,641.58,Jul-20
EREWASH BOROUGH COUNCIL,219589,Household/Residual Waste Collection,Agency Staff,06/06/20,WORKCHAIN LTD,962.37,Jul-20
EREWASH BOROUGH COUNCIL,219590,Household/Residual Waste Collection,Agency Staff,13/06/20,WORKCHAIN LTD,962.37,Jul-20
EREWASH BOROUGH COUNCIL,219958,Kerbside Dry Recycling Collection,Agency Staff,27/06/20,WORKCHAIN LTD,"1,035.99",Jul-20
EREWASH BOROUGH COUNCIL,219958,Household/Residual Waste Collection,Agency Staff,27/06/20,WORKCHAIN LTD,"1,553.98",Jul-20
EREWASH BOROUGH COUNCIL,219589,Kerbside Dry Recycling Collection,Agency Staff,06/06/20,WORKCHAIN LTD,641.58,Jul-20
EREWASH BOROUGH COUNCIL,219590,Kerbside Dry Recycling Collection,Agency Staff,13/06/20,WORKCHAIN LTD,641.58,Jul-20
EREWASH BOROUGH COUNCIL,219956,Household/Residual Waste Collection,Agency Staff,20/06/20,WORKCHAIN LTD,962.37,Jul-20
EREWASH BOROUGH COUNCIL,219777,Balance Sheet,COVID19 Discretionary Business Grants,15/07/20,YOUR MIX LTD,"2,000.00",Jul-20
EREWASH BOROUGH COUNCIL,219620,Balance Sheet,COVID19 Discretionary Business Grants,09/07/20,YOUR MIX LTD,"3,000.00",Jul-20
